{"text_format":"1","workbook":"xlsx","n_sheets":14,"sheets":["DATASK","RUMUS","SK1516","LPT1516","LPJ1516","DTPERSON1516","SK1617","LPJ1617","LPT1617","DTPERSON1617","DTPERSON1718","SK1718","LPT1718","LPJ1718"],"not_rendered":{"charts":0,"images":1,"macros":1,"external_links":1,"defined_names":12,"comments":0,"pivot_tables":0},"unopened":[],"bounds":{"document_bytes":16777216,"sheet_cells":100000,"rows_first":2000,"rows_last":500,"rows_between":2000,"halvings":0,"cell_chars":16384,"cell_head_chars":4096},"cells_cut":0,"cells_raw":0,"read":"whole","date_system":"1900"}

{"sheet":"DATASK","index":0,"n_rows":28,"n_cols":5,"rows_kept":28,"cut":false,"hidden":false,"merged":[]}
["Tahun Pelajaran",":","2017/2018"]
[]
["Nama Sekolah",null,"MI NURUL ISLAM LABRUK KIDUL"]
[]
["Nama KS",null,"SAHRONI,S.Pd.I"]
[]
["JABATAN YANG DI SK",null,"Kepala Tata Usaha","No. SK","004/MINI.L-Kid/ 30.02.02/SK/VII/2017"]
[]
[null,null,"Staff Tata Usaha",null,"004/MINI.L-Kid/ 30.02.02/SK/VII/2017"]
[]
[null,null,"PKM. Kurikulum",null,"004/MINI.L-Kid/ 30.02.02/SK/VII/2017"]
[]
[null,null,"Bendahara Madrasah",null,"004/MINI.L-Kid/ 30.02.02/SK/VII/2017"]
[]
[null,null,"PKM. Kesiswaan",null,"004/MINI.L-Kid/ 30.02.02/SK/VII/2017"]
[]
[null,null,"PKM. Sarana dan Prasarana",null,"004/MINI.L-Kid/ 30.02.02/SK/VII/2017"]
[]
[null,null,"PKM. Humas",null,"004/MINI.L-Kid/ 30.02.02/SK/VII/2017"]
[]
[null,null,"Guru Tetap Yayasan",null,"004/MINI.L-Kid/ 30.02.02/SK/VII/2017"]
[]
[null,null,"Koordinator Tilawati",null,"004/MINI.L-Kid/ 30.02.02/SK/VII/2017"]
[]
["tanggal SK",null,"2017-07-17"]
["TMT SK",null,"2017-07-17"]
["berlaku sd",null,"2018-07-16"]
["ditetapkan di",null,"Labruk Kidul"]

{"sheet":"RUMUS","index":1,"n_rows":19,"n_cols":9,"rows_kept":19,"cut":false,"hidden":false,"merged":[[2,2,2,4]]}
[]
[]
[null,null,"TAHUN PELAJARAN",null,null,null,null,"Guru","Kegiatan Belajar Mengajar perlu ditetapkan"]
[null,null,"2007","2008",{"$f":"C4&\"/\"&D4","v":"2007/2008"},null,null,"Ka TU","Administrasi Kegiatan Belajar Mengajar perlu ditetapkan"]
[null,null,"2008","2009",{"$f":"C5&\"/\"&D5","v":"2008/2009"},null,null,"Staff TU","Administrasi Kegiatan Belajar Mengajar perlu ditetapkan"]
[null,null,"2009","2010","2009/2010",null,null,"sarpras","Sarana dan Prasarana Belajar Mengajar perlu ditetapkan"]
[null,null,"2010","2011","2010/2011",null,null,"kesiswaan","Ketertiban dan kedisiplinan Belajar Mengajar perlu ditetapkan"]
[null,null,"2011","2012","2011/2012",null,null,"keuangan","pengelolahan Keuangan BOS perlu ditetapkan"]
[null,null,"2012","2013","2012/2013",null,null,"Humas","Hubungan Kegiatan Madrasah dan Masyarakat perlu ditetapkan"]
[null,null,"2013","2014","2013/2014",null,null,"ko tilwt","Kegiatan Belajar Mengajar Alquran Metode tilawati perlu ditetapkan"]
[null,null,"2014","2015","2014/2015"]
[null,null,"2015","2016","2015/2016"]
[null,null,"2016","2017","2016/2017"]
[null,null,"2017","2018","2017/2018"]
[null,null,"2018","2019","2018/2019"]
[null,null,"2019","2020","2019/2020"]
[null,null,"2020","2021","2020/2021"]
[null,null,"2021","2022","2021/2022"]
[null,null,"2022","2023","2022/2023"]

{"sheet":"SK1516","index":2,"n_rows":49,"n_cols":8,"rows_kept":49,"cut":false,"hidden":false,"merged":[[17,3,17,5],[18,3,18,5],[23,3,23,5],[30,0,30,5],[37,3,37,5],[14,0,14,5],[8,0,8,5],[9,0,9,5],[11,0,11,5],[12,0,12,5],[13,0,13,5]]}
[]
[]
[]
[]
[]
[]
[]
[null,null,null,null,null,null,null,5]
["SURAT KEPUTUSAN KEPALA MI.NURUL ISLAM LABRUK KIDUL"]
[{"$f":"\"NOMOR : \"&VLOOKUP('SK1516'!H8,DTPERSON1516!A5:I44,8)&VLOOKUP('SK1516'!H8,DTPERSON1516!A5:I44,9)","v":"NOMOR : 008/MINI.L-Kid/ 30.02.02/SK/VII/2015"},null,null,null,null,null,null,{"$f":"VLOOKUP('SK1516'!H8,DTPERSON1516!A5:I44,7)","v":"Guru"}]
[]
["TENTANG"]
[{"$f":"\"PENGANGKATAN \"&UPPER(VLOOKUP('SK1516'!H8,DTPERSON1516!A5:I44,6))","v":"PENGANGKATAN TENAGA PENDIDIK"}]
["DI LINGKUNGAN LEMBAGA PENDIDIKAN MA’ARIF NU"]
[{"$f":"\"Tahun Pelajaran \"&DTPERSON1516!C45","v":"Tahun Pelajaran 2015/2016"}]
[]
[]
["Menimbang",":","1.",{"$f":"\"Bahwa guna melancarkan pelaksanaan \"&IF(H10=\"Guru\",RUMUS!I3,IF(H10=\"Kepala Tata Usaha\",RUMUS!I4,IF(H10=\"Staff Tata Usaha\",RUMUS!I4,IF(H10=\"PKM. Sarana Prasarana\",RUMUS!I6,IF(H10=\"PKM. Keuangan\",RUMUS!I8,IF(H10=\"PKM. Kesiswaan\",RUMUS!I7,IF(H10=\"PKM. Humas\",RUMUS!I9,IF(H10=\"Koordinator Tilawati\",RUMUS!I10,\"\"))))))))&\" \"&H10&\" pada \"&UPPER(DATASK!C3)","v":"Bahwa guna melancarkan pelaksanaan Kegiatan Belajar Mengajar perlu ditetapkan Guru pada MI NURUL ISLAM LABRUK KIDUL"}]
[null,null,"2.",{"$f":"\"Bahwa untuk menjamin terpeliharanya Tata Tertib serta kelancaran tugas -  tugas pokok \"&(VLOOKUP('SK1516'!H8,DTPERSON1516!A5:I44,7))&\" perlu diatur dalam Surat Keputusan Kepala Madrasah.\"","v":"Bahwa untuk menjamin terpeliharanya Tata Tertib serta kelancaran tugas -  tugas pokok Guru perlu diatur dalam Surat Keputusan Kepala Madrasah."}]
[]
["Mengingat",":","1.","Undang – undang nomor 20 Tahun 2003, tentang Sistem Pendidikan Nasional"]
[null,null,"2.","Peraturan Pemerintah RI Nomor 29 Tahun 1990."]
[null,null,"3.","Keputusan Mentri Pendayagunaan Aparatur Negara Nomor Tahun 1993"]
[null,null,"4.","Surat Keputusan bersama Mentri Pendidikan dan Kebudayaan dan Kepala  Badan Administrasi Kepegawaian Negara Nomor : 0433/P/1993 dan Nomor :  25/P/1993."]
[null,null,"5.","Keputusan Mentri Pendidikan Nasional Nomor : 084/U/2004."]
[null,null,null,"  "]
[]
[]
["Memperhatikan ",":",{"$f":"\"Hasil rapat Dewan Guru \"&PROPER(DATASK!C3)","v":"Hasil rapat Dewan Guru Mi Nurul Islam Labruk Kidul"}]
[]
["MEMUTUSKAN"]
["Menetapkan",":","1.","Mengangkat Saudara :"]
[null,null,null,"      Nama",{"$f":"\": \"&VLOOKUP('SK1516'!H8,DTPERSON1516!A5:I44,2)","v":": Khusnul Adibah,S.Pd.I"}]
[null,null,null,"      Jenis Kelamin",{"$f":"\": \"&IF(VLOOKUP('SK1516'!H8,DTPERSON1516!A5:I44,3)=\"L\",\"Laki-laki\",\"Perempuan\")","v":": Perempuan"}]
[null,null,null,"      Tempat/tanggal lahir",{"$f":"\": \"&VLOOKUP('SK1516'!H8,DTPERSON1516!A5:I44,4)&\", \"&TEXT(VLOOKUP('SK1516'!H8,DTPERSON1516!A5:I44,5),\"dd mmmm yyyy\")","v":": Lumajang, 03 Oktober 1968"}]
[null,null,null,"      Sebagai ",{"$f":"\": \"&VLOOKUP('SK1516'!H8,DTPERSON1516!A5:I44,7)","v":": Guru"}]
[null,null,null,"      Tanggal Mulai tugas",{"$f":"\": \"&TEXT(DTPERSON1516!C70,\"dd mmmm yyyy\")","v":": 17 Juli 2015"}]
[null,null,"2.",{"$f":"\"mengamanatkan kepada yang bersangkutan tersebut diatas untuk  melaksanakan tugasnya dengan sebaik baiknya dan bertanggung jawab berdasarkan pedoman dan ketentuan yang berlaku pada \"&DTPERSON1516!C47","v":"mengamanatkan kepada yang bersangkutan tersebut diatas untuk  melaksanakan tugasnya dengan sebaik baiknya dan bertanggung jawab berdasarkan pedoman dan ketentuan yang berlaku pada MI NURUL ISLAM LABRUK KIDUL"}]
[null,null,"3.",{"$f":"\"Surat Keputusan ( SK ) ini berlaku sampai dengan tanggal \"&TEXT(DTPERSON1516!C71,\"dd mmmm yyyy\")","v":"Surat Keputusan ( SK ) ini berlaku sampai dengan tanggal 16 Juli 2016"}]
[]
[null,null,null,null,"Ditetapkan di ",{"$f":"\": \"&DTPERSON1516!C72","v":": Labruk Kidul"}]
["                                        ",null,null,null,"Pada Tanggal",{"$f":"\": \"&TEXT(DTPERSON1516!C69,\"dd mmmm yyyy\")","v":": 17 Juli 2015"}]
["  ",null,null,null,{"$f":"UPPER(\"Kepala Madrasah\")","v":"KEPALA MADRASAH"}]
[null,null,null,null,{"$f":"UPPER(DATASK!C3)","v":"MI NURUL ISLAM LABRUK KIDUL"}]
[]
[]
[]
[]
[null,null,null,null,{"$f":"DATASK!C5","v":"SAHRONI,S.Pd.I"}]

{"sheet":"LPT1516","index":3,"n_rows":55,"n_cols":9,"rows_kept":55,"cut":false,"hidden":false,"merged":[[35,5,35,6],[16,5,16,6],[18,5,29,6],[30,5,30,6],[31,5,31,6],[32,5,32,6],[33,5,33,6],[9,5,15,6],[4,0,5,0],[4,1,5,2],[4,3,5,4],[4,5,5,6],[6,5,7,6]]}
["Lampiran 1 ",null,": SK Kepala MIS. Nurul Islam Labruk Kidul"]
["Nomor",null,": 001/MINI.L-Kid/30.02.02/SK.S.1-0/VII/2017"]
["Tanggal",null,{"$f":"\": \"&\"15 Juli 2017\"","v":": 15 Juli 2017"},null,null,null,null,null,"2016-06-11"]
[]
["NO","N A M A",null,"JENIS TUGAS",null,"KETERANGAN"]
[]
["01","KEPALA MADRASAH"]
[null,"1. SAHRONI,S.Pd.I",null,"Ø","Kepala Madrasah"]
["02","PEMBANTU KEPALA MADRASAH"]
[null,"2.1.AZAN TUDHONI, S.Pd",null,"Ø","PKM Kesiswaan","Membantu Kepala Madrasah"]
[null,"2.2. NURUL HIDAYAH, S.Pd.I. MA",null,"Ø","PKM Tenaga Kependidikan"]
[null,"2.3. NUR RATNA PRIHATININGSIH, S.Pd",null,"Ø","PKM Kurikulum"]
[null,"2.4. KHUSNUL ADIBAH, S.Pd.I",null,"Ø","PKM Sarana Prasarana"]
[null,"2.5. AHMAD SHODIQ, SH",null,"Ø","PKM. Humas"]
["03","BENDAHARA"]
[null,"1. NURUL HIDAYAH, S.Pd.I,MA",null,"Ø","Bendahara Umum"]
["04","WALI KELAS"]
[null,"1. KHUSNUL ADIBAH, S.Pd.I",null,"Ø","Wali Kelas I. A"]
[null,"2. EVY NUNING FARIDAH, S.Pd.I",null,"Ø","Wali Kelas I. B","Membantu PKM. Kurikulum"]
[null,"3. SITI MUNFARIDAH, S.Pd",null,"Ø","Wali Kelas I. C"]
[null,"4. MINUK IKA WULANDARI, S.Pd.I",null,"Ø","Wali Kelas II A"]
[null,"5. NURUL LATHIFAH, S.Pd.I",null,"Ø","Wali Kelas II B"]
[null,"6. MUHAMMAD KHOIRI, S.Pd",null,"Ø","Wali Kelas III A"]
[null,"7. SUMARMI, S,Pd.I",null,"Ø","Wali Kelas III B"]
[null,"8. CHUSNI KURNIAWAN, S.Pd",null,"Ø","Wali Kelas IV. A"]
[null,"9. LIYA SHOBIHATUL QUDRIYAH, S.Pd",null,"Ø","Wali Kelas IV. B"]
[null,"10. AHMAD SHODIQ, SH",null,"Ø","Wali Kelas V. A"]
[null,"11. NUR RATNA PRIHATININGSIH, S.Pd",null,"Ø","Wali Kelas V. B"]
[null,"12. CHAYUL MU'AFA, S.Ag",null,"Ø","Wali Kelas VI A"]
[null,"13. NURUL HIDAYAH, S.Pd.I MA",null,"Ø","Wali Kelas VI B"]
["05","OPERATOR",null,null,null,"Membantu :"]
[null,"1. CHUSNI KURNIAWAN,S.Pd",null,"Ø","mengelola administrasi berbasis IT","- Kepala Madrasah dan TU"]
["06","KEPALA TATA USAHA",null,"Ø","Mengelola, Menyiapkan dan","Membantu :"]
[null,"1. STEPHANIE AYU SAKETHI",null,null,"membuat data/Administrasi","- Kepala Madrasah"]
["07","KOPERASI PERALATAN SEKOLAH",null,"Ø","Mengelola Koperasi Serta","- Wali Kelas"]
[null,"1. ROFIATUL MAZIDAH",null,null,"menyediakan kebutuhan murid","Membantu WK. Kesiswaan"]
["08","KOPERASI KANTIN"]
[null,"1. SHOLIKHATI",null,"Ø","Mengelola Kantin"]
[null,"2. YULIANA, S. Pd I"]
["09","TABUNGAN"]
[null,"1. STEPHANIE AYU SAKETHI"]
["10","PERPUSTAKAAN",null,"Ø","Mengelola Perpustakaan Madrasah"]
[null,"1. NURUL LATHIFAH, S.Pd.I"]
["11","UKS",null,"Ø","Mengelola UKS Madrasah"]
[null,"1. MUH. ZUHDI AGUSRIYANTO, S.Pd"]
[12,"KEAMANAN/SECURITY",null,"Ø","Keamanan Madrasah"]
[null,"1. M. SAIKHU"]
[13,"WALKER/TUKANG KEBUN",null,"Ø","Merawat dan Mengatur Kebersihan"]
[null,"1. MUSTHOFA",null,null,"Madrasah"]
[]
[null,null,null,null,null,{"$f":"\"Labruk Kidul, \"&\"15 Juli 2017\"","v":"Labruk Kidul, 15 Juli 2017"}]
[null,null,"Mengetahui,",null,null,"Kepala Madrasah"]
[]
[]
[null,null,"MOCH. QOYYUM,SH",null,null,"SAHRONI,S.Pd.I"]

{"sheet":"LPJ1516","index":4,"n_rows":166,"n_cols":21,"rows_kept":166,"cut":false,"hidden":false,"merged":[[157,0,157,4],[151,0,152,0],[151,1,152,2],[151,3,152,3],[151,20,152,20],[153,0,154,0],[153,1,154,2],[153,3,154,3],[153,20,154,20],[148,3,150,3],[148,20,150,20],[129,0,138,0],[129,3,138,3],[129,20,138,20],[132,1,132,2],[133,1,133,2],[134,1,134,2],[139,0,147,0],[139,3,147,3],[139,20,147,20],[143,1,143,2],[144,1,144,2],[109,0,118,0],[109,3,118,3],[109,20,118,20],[113,1,113,2],[119,0,128,0],[119,3,128,3],[119,20,128,20],[124,1,124,2],[89,0,98,0],[89,20,98,20],[93,1,93,2],[99,0,108,0],[99,3,108,3],[99,20,108,20],[103,1,103,2],[104,1,104,2],[67,0,77,0],[67,3,77,3],[67,20,77,20],[72,1,72,2],[73,1,73,2],[78,0,88,0],[78,20,88,20],[83,1,83,2],[83,3,87,3],[84,1,84,2],[45,0,55,0],[45,3,55,3],[45,20,55,20],[50,1,50,2],[51,1,51,2],[56,0,66,0],[56,3,66,3],[56,20,66,20],[61,1,61,2],[62,1,62,2],[34,0,44,0],[34,3,44,3],[34,20,44,20],[9,1,9,2],[10,0,11,0],[10,1,11,2],[10,3,11,3],[10,20,11,20],[12,0,22,0],[12,3,22,3],[12,20,22,20],[23,0,33,0],[23,3,33,3],[23,20,33,20],[28,1,28,2],[29,1,29,2],[4,0,4,20],[5,0,5,20],[6,0,6,20],[7,0,8,0],[7,1,8,2],[7,4,8,4],[7,5,7,17],[7,18,8,18],[7,19,8,19],[7,20,8,20]]}
["Lampiran 2",null,{"$f":"[1]Tugas!C1","v":": SK Kepala MIS. Nurul Islam Labruk Kidul"}]
["Nomor",null,{"$f":"[1]Tugas!C2","v":": 001/MINI.L-Kid/30.02.02/SK.S.1-0/VII/2017"}]
["Tanggal",null,{"$f":"[1]Tugas!C3","v":": 15 Juli 2017"}]
[]
["DATA TUGAS MENGAJAR DAN JUMLAH JAM MENGAJAR"]
["MI. MA'ARIF NU NURUL ISLAM LABRUK KIDUL - SUMBERSUKO"]
["TAHUN PELAJARAN 2017/2018"]
["NO","NAMA GURU",null,"KD","TUGAS MENGAJAR","Jumlah Jam Dalam Kelas",null,null,null,null,null,null,null,null,null,null,null,null,"KS","JML JAM PER-BDG STUDI","JML JAM TOTAL"]
[null,null,null,"GURU",null,"1a","1b","1c","2a","2b","3a","3b","4a","4b","5a","5b","6a","6b"]
[1,"Sahroni, S.Pd.I",null,null,"Aswaja",null,null,null,null,null,null,null,null,null,null,null,2,2,18,{"$f":"SUM(F10:S10)","v":22},{"$f":"SUM(T10:T10)","v":22}]
[2,"M. Said",null,null,"B. Arab",null,null,null,null,null,null,null,2,2,2,2,2,2,null,12,{"$f":"SUM(T11:T12)","v":24}]
[null,null,null,null,"Nahwu/Shorof",null,null,null,null,null,null,null,2,2,2,2,2,2,null,12]
[3,null,null,null,"Matematika",4,null,null,null,null,null,null,null,null,null,null,null,null,null,4,{"$f":"SUM(F13:R23)","v":30}]
[null,null,null,null,"IPA/Sains",3,null,null,null,null,null,null,null,null,null,null,null,null,null,3]
[null,null,null,null,"B. Indonesia",4,null,null,null,null,null,null,null,null,null,null,null,null,null,4]
[null,null,null,null,"IPS",3,null,null,null,null,null,null,null,null,null,null,null,null,null,3]
[null,null,null,null,"PPKn",2,null,null,null,null,null,null,null,null,null,null,null,null,null,2]
[null,"Khusnul Adibah, S.Pd.I",null,null,"Kertakes",3,null,null,null,null,null,null,null,null,null,null,null,null,null,3]
[null,"(WALI KELAS I A)",null,null,"Fiqih",2,null,null,null,null,null,null,null,null,null,null,null,null,null,2]
[null,null,null,null,"AlQuran Hadits",2,null,null,null,null,null,null,null,null,null,null,null,null,null,2]
[null,null,null,null,"Aqidah Akhlaq",2,null,null,null,null,null,null,null,null,null,null,null,null,null,2]
[null,null,null,null,"Bhs Inggris",1,null,null,null,null,null,null,null,null,null,null,null,null,null,1]
[null,null,null,null,"Penjaskes",4,null,null,null,null,null,null,null,null,null,null,null,null,null,4]
[4,null,null,null,"Matematika",null,4,null,null,null,null,null,null,null,null,null,null,null,null,{"$f":"SUM(G24:S24)","v":4},{"$f":"SUM(T24:T34)","v":30}]
[null,null,null,null,"IPA/Sains",null,3,null,null,null,null,null,null,null,null,null,null,null,null,3]
[null,null,null,null,"B. Indonesia",null,4,null,null,null,null,null,null,null,null,null,null,null,null,4]
[null,null,null,null,"IPS",null,3,null,null,null,null,null,null,null,null,null,null,null,null,3]
[null,null,null,null,"PPKn",null,2,null,null,null,null,null,null,null,null,null,null,null,null,2]
[null,"Evi Nuning Faridah, S.Pd.I",null,null,"Kertakes",null,3,null,null,null,null,null,null,null,null,null,null,null,null,3]
[null,"(WALI KELAS I B)",null,null,"Fiqih",null,2,null,null,null,null,null,null,null,null,null,null,null,null,2]
[null,null,null,null,"AlQuran Hadits",null,2,null,null,null,null,null,null,null,null,null,null,null,null,2]
[null,null,null,null,"Aqidah Akhlaq",null,2,null,null,null,null,null,null,null,null,null,null,null,null,2]
[null,null,null,null,"Bhs Inggris",null,1,null,null,null,null,null,null,null,null,null,null,null,null,1]
[null,null,null,null,"Penjaskes",null,4,null,null,null,null,null,null,null,null,null,null,null,null,4]
[5,null,null,null,"Matematika",null,null,4,null,null,null,null,null,null,null,null,null,null,null,4,30]
[null,null,null,null,"IPA/Sains",null,null,3,null,null,null,null,null,null,null,null,null,null,null,3]
[null,null,null,null,"B. Indonesia",null,null,4,null,null,null,null,null,null,null,null,null,null,null,4]
[null,null,null,null,"IPS",null,null,3,null,null,null,null,null,null,null,null,null,null,null,3]
[null,null,null,null,"PPKn",null,null,2,null,null,null,null,null,null,null,null,null,null,null,2]
[null,"Siti Munfaridah,S.Pd",null,null,"Kertakes",null,null,3,null,null,null,null,null,null,null,null,null,null,null,3]
[null,"(WALI KELAS I C)",null,null,"Fiqih",null,null,2,null,null,null,null,null,null,null,null,null,null,null,2]
[null,null,null,null,"AlQuran Hadits",null,null,2,null,null,null,null,null,null,null,null,null,null,null,2]
[null,null,null,null,"Aqidah Akhlaq",null,null,2,null,null,null,null,null,null,null,null,null,null,null,2]
[null,null,null,null,"Bhs Inggris",null,null,1,null,null,null,null,null,null,null,null,null,null,null,1]
[null,null,null,null,"Penjaskes",null,null,4,null,null,null,null,null,null,null,null,null,null,null,4]
[6,null,null,null,"Matematika",null,null,null,4,null,null,null,null,null,null,null,null,null,null,{"$f":"SUM(F46:S46)","v":4},{"$f":"SUM(T46:T56)","v":30}]
[null,null,null,null,"IPA/Sains",null,null,null,3,null,null,null,null,null,null,null,null,null,null,3]
[null,null,null,null,"B. Indonesia",null,null,null,4,null,null,null,null,null,null,null,null,null,null,4]
[null,null,null,null,"IPS",null,null,null,3,null,null,null,null,null,null,null,null,null,null,3]
[null,null,null,null,"PPKn",null,null,null,2,null,null,null,null,null,null,null,null,null,null,2]
[null,"Minuk Ika Wulandari, S.Pd.I",null,null,"Kertakes",null,null,null,3,null,null,null,null,null,null,null,null,null,null,3]
[null,"(WALI KELAS II A)",null,null,"Fiqih",null,null,null,2,null,null,null,null,null,null,null,null,null,null,2]
[null,null,null,null,"AlQuran Hadits",null,null,null,2,null,null,null,null,null,null,null,null,null,null,2]
[null,null,null,null,"Aqidah Akhlaq",null,null,null,2,null,null,null,null,null,null,null,null,null,null,2]
[null,null,null,null,"Bhs Inggris",null,null,null,1,null,null,null,null,null,null,null,null,null,null,1]
[null,null,null,null,"Penjaskes",null,null,null,4,null,null,null,null,null,null,null,null,null,null,4]
[7,null,null,null,"Matematika",null,null,null,null,4,null,null,null,null,null,null,null,null,null,4,{"$f":"SUM(T57:T67)","v":30}]
[null,null,null,null,"IPA/Sains",null,null,null,null,3,null,null,null,null,null,null,null,null,null,3]
[null,null,null,null,"B. Indonesia",null,null,null,null,4,null,null,null,null,null,null,null,null,null,4]
[null,null,null,null,"IPS",null,null,null,null,3,null,null,null,null,null,null,null,null,null,3]
[null,null,null,null,"PPKn",null,null,null,null,2,null,null,null,null,null,null,null,null,null,2]
[null,"Nurul Lathifah,S.Pd.I",null,null,"Kertakes",null,null,null,null,3,null,null,null,null,null,null,null,null,null,3]
[null,"(WALI KELAS II B)",null,null,"Fiqih",null,null,null,null,2,null,null,null,null,null,null,null,null,null,2]
[null,null,null,null,"AlQuran Hadits",null,null,null,null,2,null,null,null,null,null,null,null,null,null,2]
[null,null,null,null,"Aqidah Akhlaq",null,null,null,null,2,null,null,null,null,null,null,null,null,null,2]
[null,null,null,null,"Bhs Inggris",null,null,null,null,1,null,null,null,null,null,null,null,null,null,1]
[null,null,null,null,"Penjaskes",null,null,null,null,4,null,null,null,null,null,null,null,null,null,4]
[8,null,null,null,"Matematika",null,null,null,null,null,5,null,null,null,null,null,null,null,null,5,{"$f":"SUM(T68:T78)","v":31}]
[null,null,null,null,"IPA/Sains",null,null,null,null,null,4,null,null,null,null,null,null,null,null,4]
[null,null,null,null,"B. Indonesia",null,null,null,null,null,4,null,null,null,null,null,null,null,null,4]
[null,null,null,null,"IPS",null,null,null,null,null,3,null,null,null,null,null,null,null,null,3]
[null,null,null,null,"PPKn",null,null,null,null,null,2,null,null,null,null,null,null,null,null,2]
[null,"Muhammad Khoiri,S.Pd.I",null,null,"Bhs Daerah",null,null,null,null,null,2,null,null,null,null,null,null,null,null,2]
[null,"(WALI KELAS III A)",null,null,"Fiqih",null,null,null,null,null,2,null,null,null,null,null,null,null,null,2]
[null,null,null,null,"AlQuran Hadits",null,null,null,null,null,2,null,null,null,null,null,null,null,null,2]
[null,null,null,null,"Aqidah Akhlaq",null,null,null,null,null,2,null,null,null,null,null,null,null,null,2]
[null,null,null,null,"KTK",null,null,null,null,null,3,null,null,null,null,null,null,null,null,3]
[null,null,null,null,"Bhs Inggris",null,null,null,null,null,2,null,null,null,null,null,null,null,null,2]
[9,null,null,null,"Matematika",null,null,null,null,null,null,5,null,null,null,null,null,null,null,5,{"$f":"SUM(T79:T89)","v":31}]
[null,null,null,null,"IPA/Sains",null,null,null,null,null,null,4,null,null,null,null,null,null,null,4]
[null,null,null,null,"B. Indonesia",null,null,null,null,null,null,4,null,null,null,null,null,null,null,4]
[null,null,null,null,"IPS",null,null,null,null,null,null,3,null,null,null,null,null,null,null,3]
[null,null,null,null,"PPKn",null,null,null,null,null,null,2,null,null,null,null,null,null,null,2]
[null,"Sumarmi,S.Pd.I",null,null,"Bhs Daerah",null,null,null,null,null,null,2,null,null,null,null,null,null,null,2]
[null,"(WALI KELAS III B)",null,null,"Fiqih",null,null,null,null,null,null,2,null,null,null,null,null,null,null,2]
[null,null,null,null,"AlQuran Hadits",null,null,null,null,null,null,2,null,null,null,null,null,null,null,2]
[null,null,null,null,"Aqidah Akhlaq",null,null,null,null,null,null,2,null,null,null,null,null,null,null,2]
[null,null,null,null,"KTK",null,null,null,null,null,null,3,null,null,null,null,null,null,null,3]
[null,null,null,null,"Bhs Inggris",null,null,null,null,null,null,2,null,null,null,null,null,null,null,2]
[10,null,null,null,"MTK",null,null,null,null,null,null,null,5,null,null,null,null,null,null,5,{"$f":"SUM(M90:M99)","v":29}]
[null,null,null,null,"IPA/Sains",null,null,null,null,null,null,null,4,null,null,null,null,null,null,4]
[null,null,null,null,"B. Indonesia",null,null,null,null,null,null,null,5,null,null,null,null,null,null,5]
[null,"Chusni Kurniawan, S.Pd",null,null,"IPS",null,null,null,null,null,null,null,3,null,null,null,null,null,null,3]
[null,"(WALI KELAS IV A)",null,null,"PPKn",null,null,null,null,null,null,null,2,null,null,null,null,null,null,2]
[null,null,null,null,"Kertakes",null,null,null,null,null,null,null,2,null,null,null,null,null,null,2]
[null,null,null,null,"Fiqih",null,null,null,null,null,null,null,2,null,null,null,null,null,null,2]
[null,null,null,null,"AlQuran Hadits",null,null,null,null,null,null,null,2,null,null,null,null,null,null,2]
[null,null,null,null,"Bhs Inggris",null,null,null,null,null,null,null,2,null,null,null,null,null,null,2]
[null,null,null,null,"Aswaja",null,null,null,null,null,null,null,2,null,null,null,null,null,null,2]
[11,null,null,null,"MTK",null,null,null,null,null,null,null,null,5,null,null,null,null,null,5,{"$f":"SUM(T100:T109)","v":29}]
[null,null,null,null,"IPA/Sains",null,null,null,null,null,null,null,null,4,null,null,null,null,null,4]
[null,null,null,null,"B. Indonesia",null,null,null,null,null,null,null,null,5,null,null,null,null,null,5]
[null,null,null,null,"IPS",null,null,null,null,null,null,null,null,3,null,null,null,null,null,3]
[null,"LIYA SHOBIHATUL Q,S.Pd",null,null,"PPKn",null,null,null,null,null,null,null,null,2,null,null,null,null,null,2]
[null,"(WALI KELAS VI B)",null,null,"Kertakes",null,null,null,null,null,null,null,null,2,null,null,null,null,null,2]
[null,null,null,null,"Fiqih",null,null,null,null,null,null,null,null,2,null,null,null,null,null,2]
[null,null,null,null,"AlQuran Hadits",null,null,null,null,null,null,null,null,2,null,null,null,null,null,2]
[null,null,null,null,"Bhs Inggris",null,null,null,null,null,null,null,null,2,null,null,null,null,null,2]
[null,null,null,null,"Aswaja",null,null,null,null,null,null,null,null,2,null,null,null,null,null,2]
[12,null,null,null,"Matematika",null,null,null,null,null,null,null,null,null,5,null,null,null,null,{"$f":"SUM(F110:S110)","v":5},{"$f":"SUM(T110:T119)","v":29}]
[null,null,null,null,"IPA/Sains",null,null,null,null,null,null,null,null,null,4,null,null,null,null,4]
[null,null,null,null,"B. Indonesia",null,null,null,null,null,null,null,null,null,5,null,null,null,null,5]
[null,null,null,null,"IPS",null,null,null,null,null,null,null,null,null,3,null,null,null,null,3]
[null,"Ahmad Shodiq,SH",null,null,"PPKn",null,null,null,null,null,null,null,null,null,2,null,null,null,null,2]
[null,"(WALI KELAS V A)",null,null,"Kertakes",null,null,null,null,null,null,null,null,null,2,null,null,null,null,2]
[null,null,null,null,"Fiqih",null,null,null,null,null,null,null,null,null,2,null,null,null,null,2]
[null,null,null,null,"AlQuran Hadits",null,null,null,null,null,null,null,null,null,2,null,null,null,null,2]
[null,null,null,null,"Bhs Inggris",null,null,null,null,null,null,null,null,null,2,null,null,null,null,2]
[null,null,null,null,"Aswaja",null,null,null,null,null,null,null,null,null,2,null,null,null,null,2]
[13,null,null,null,"Matematika",null,null,null,null,null,null,null,null,null,null,5,null,null,null,5,{"$f":"SUM(T120:T129)","v":29}]
[null,null,null,null,"IPA/Sains",null,null,null,null,null,null,null,null,null,null,4,null,null,null,4]
[null,null,null,null,"B. Indonesia",null,null,null,null,null,null,null,null,null,null,5,null,null,null,5]
[null,null,null,null,"IPS",null,null,null,null,null,null,null,null,null,null,3,null,null,null,3]
[null,"NUR RATNA P, S.Pd",null,null,"PPKn",null,null,null,null,null,null,null,null,null,null,2,null,null,null,2]
[null,"(WALI KELAS V B)",null,null,"Kertakes",null,null,null,null,null,null,null,null,null,null,2,null,null,null,2]
[null,null,null,null,"Fiqih",null,null,null,null,null,null,null,null,null,null,2,null,null,null,2]
[null,null,null,null,"AlQuran Hadits",null,null,null,null,null,null,null,null,null,null,2,null,null,null,2]
[null,null,null,null,"Bhs Inggris",null,null,null,null,null,null,null,null,null,null,2,null,null,null,2]
[null,null,null,null,"Aswaja",null,null,null,null,null,null,null,null,null,null,2,null,null,null,2]
[14,null,null,null,"Matematika",null,null,null,null,null,null,null,null,null,null,null,5,null,null,5,{"$f":"SUM(T130:T139)","v":31}]
[null,null,null,null,"IPA/Sains",null,null,null,null,null,null,null,null,null,null,null,4,null,null,4]
[null,null,null,null,"B. Indonesia",null,null,null,null,null,null,null,null,null,null,null,5,null,null,5]
[null,null,null,null,"IPS",null,null,null,null,null,null,null,null,null,null,null,3,null,null,3]
[null,"Chayul Mu'afa,S.Ag",null,null,"PPKn",null,null,null,null,null,null,null,null,null,null,null,2,null,null,2]
[null,"(WALI KELAS VI A)",null,null,"KTK",null,null,null,null,null,null,null,null,null,null,null,2,null,null,2]
[null,null,null,null,"Fiqih",null,null,null,null,null,null,null,null,null,null,null,2,null,null,2]
[null,null,null,null,"AlQuran Hadits",null,null,null,null,null,null,null,null,null,null,null,2,null,null,2]
[null,null,null,null,"Aqidah Akhlaq",null,null,null,null,null,null,null,null,null,null,null,2,null,null,2]
[null,null,null,null,"Bhs Daerah",null,null,null,null,null,null,null,null,null,null,null,2,2,null,4]
[15,null,null,null,"Matematika",null,null,null,null,null,null,null,null,null,null,null,null,5,null,5,{"$f":"SUM(T140:T148)","v":27}]
[null,null,null,null,"IPA/Sains",null,null,null,null,null,null,null,null,null,null,null,null,4,null,4]
[null,null,null,null,"B. Indonesia",null,null,null,null,null,null,null,null,null,null,null,null,5,null,5]
[null,null,null,null,"IPS",null,null,null,null,null,null,null,null,null,null,null,null,3,null,3]
[null,"Nurul Hidayah,S.Pd.I,MA",null,null,"PPKn",null,null,null,null,null,null,null,null,null,null,null,null,2,null,2]
[null,"(WALI KELAS VI B)",null,null,"KTK",null,null,null,null,null,null,null,null,null,null,null,null,2,null,2]
[null,null,null,null,"Fiqih",null,null,null,null,null,null,null,null,null,null,null,null,2,null,2]
[null,null,null,null,"AlQuran Hadits",null,null,null,null,null,null,null,null,null,null,null,null,2,null,2]
[null,null,null,null,"Aqidah Akhlaq",null,null,null,null,null,null,null,null,null,null,null,null,2,null,2]
[16,"Yuliana,S.Pd.i",null,null,"SKI",null,null,null,null,null,2,2,2,2,2,2,2,2,null,16,{"$f":"SUM(T149:T151)","v":29}]
[null,null,null,null,"Aqidah Akhlaq",null,null,null,null,null,null,null,2,2,2,2,null,null,null,8]
[null,null,null,null,"Bhs Daerah",1,1,1,1,1,null,null,null,null,null,null,null,null,null,5]
[17,"Muh. Zuhdi Agusriyanto, S.Pd",null,null,"Penjaskes",null,null,null,null,null,null,null,4,4,4,4,4,4,null,{"$f":"SUM(F152:S152)","v":24},{"$f":"SUM(T152:T153)","v":28}]
[null,null,null,null,"Bhs Daerah",null,null,null,null,null,null,null,null,null,2,2,null,null,null,{"$f":"SUM(F153:S153)","v":4}]
[18,"Azan Tudhoni, S. Pd",null,null,"Penjaskes",null,null,null,null,null,4,4,null,null,null,null,null,null,null,8,{"$f":"SUM(T154:T155)","v":12}]
[null,null,null,null,"Bhs Daerah",null,null,null,null,null,null,null,2,2,null,null,null,null,null,4]
[19,"Nurul Ain",null,null,"B. Arab",2,2,2,2,2,2,2,null,null,null,null,null,null,null,14,{"$f":"T156","v":14}]
[20,"Uul Mas'ulah",null,null,"B Inggris",null,null,null,null,null,null,null,null,null,null,null,2,2,null,4,{"$f":"T157","v":4}]
["TOTAL JAM MENGAJAR",null,null,null,null,{"$f":"SUM(F10:F157)","v":33},null,{"$f":"SUM(H10:H157)","v":33},33,33,39,39,43,43,43,43,43,43,{"$f":"SUM(S10:S155)","v":18},{"$f":"SUM(F158:S158)","v":486},{"$f":"SUM(U10:U157)","v":519}]
[]
[]
[]
[null,null,"Kepala Kantor Kementerian Agama",null,null,null,null,null,null,null,null,null,null,null,null,null,null,{"$f":"[1]Tugas!F51","v":"Labruk Kidul, 15 Juli 2017"}]
[null,null,"Kabupaten Lumajang",null,null,null,null,null,null,null,null,null,null,null,null,null,null,{"$f":"[1]Tugas!F52","v":"Kepala Madrasah"}]
[]
[null,null,"Drs. H. MOH. JUM AFANDI, M.Pd.I"]
[null,null,"NIP. 19580822 1999109 1 002",null,null,null,null,null,null,null,null,null,null,null,null,null,null,{"$f":"[1]Tugas!F55","v":"SAHRONI,S.Pd.I"}]

{"sheet":"DTPERSON1516","index":5,"n_rows":72,"n_cols":9,"rows_kept":72,"cut":false,"hidden":false,"merged":[[0,0,0,6],[2,0,2,1],[44,2,44,4],[46,2,46,4],[48,2,48,4],[50,2,50,4],[52,2,52,4],[54,2,54,4],[56,2,56,4],[58,2,58,4],[69,2,69,4],[70,2,70,4],[71,2,71,4],[60,2,60,4],[62,2,62,4],[64,2,64,4],[66,2,66,4],[68,2,68,4]]}
["DATA PERSONAL",null,null,null,null,null,null,"2015/2016"]
[1,2,3,4,5,6,7,8,9]
[]
["No.","Nama","L/P","Tempat Lahir","Tanggal Lahir","Status","Jabatan","No. SK","KODE SK"]
[1,"M. Said","L","Lumajang","1966-06-23","Tenaga Pendidik","Guru","004","/MINI.L-Kid/ 30.02.02/SK/VII/2015"]
[2,"Sumarmi,S.Pd.I","P","Lumajang","1964-09-12","Tenaga Pendidik","Guru","005","/MINI.L-Kid/ 30.02.02/SK/VII/2015"]
[3,"Minuk Ika Wulandari,S.Pd,I","P","Lumajang","1979-04-14","Tenaga Pendidik","Guru","006","/MINI.L-Kid/ 30.02.02/SK/VII/2015"]
[4,"Chayul Mu'afa,S.Ag.","P","Lumajang","1977-04-15","Tenaga Pendidik","Guru","007","/MINI.L-Kid/ 30.02.02/SK/VII/2015"]
[5,"Khusnul Adibah,S.Pd.I","P","Lumajang","1968-10-03","Tenaga Pendidik","Guru","008","/MINI.L-Kid/ 30.02.02/SK/VII/2015"]
[6,"Muhammad Khoiri,S.Pd.I.","L","Lumajang","1978-05-03","Tenaga Pendidik","Guru","009","/MINI.L-Kid/ 30.02.02/SK/VII/2015"]
[7,"Yuliana,S.Pd.I","P","Lumajang","1986-10-24","Tenaga Pendidik","Guru","010","/MINI.L-Kid/ 30.02.02/SK/VII/2015"]
[8,"Ahmad Shodiq,S.H.","L","Lumajang","1977-05-15","Tenaga Pendidik","Guru","011","/MINI.L-Kid/ 30.02.02/SK/VII/2015"]
[9,"Chusni Kurniawan,S.Pd.","L","Lumajang","1987-03-09","Tenaga Pendidik","Guru","012","/MINI.L-Kid/ 30.02.02/SK/VII/2015"]
[10,"M. Zuhdi Agus Riyanto,S.Pd.","L","Jember","1975-08-23","Tenaga Pendidik","Guru","013","/MINI.L-Kid/ 30.02.02/SK/VII/2015"]
[11,"Liya Shobihatul Qudriyah,S.Pd","P","Lumajang","1990-04-25","Tenaga Pendidik","Guru","014","/MINI.L-Kid/ 30.02.02/SK/VII/2015"]
[12,"Siti Munfaridah,S.Pd","P","Lumajang","1974-09-20","Tenaga Pendidik","Guru","015","/MINI.L-Kid/ 30.02.02/SK/VII/2015"]
[13,"Nur Ratna Prihatiningsih, S.Pd","P","Lumajang","1987-09-09","Tenaga Pendidik","Guru","016","/MINI.L-Kid/ 30.02.02/SK/VII/2015"]
[14,"Nurul Hidayah, S.Pd.I, MA","P","Lumajang","1975-11-05","Tenaga Pendidik","Guru","017","/MINI.L-Kid/ 30.02.02/SK/VII/2015"]
[15,"Azan Tudhoni","L","Lumajang","1990-11-26","Tenaga Pendidik","Guru","018","/MINI.L-Kid/ 30.02.02/SK/VII/2015"]
[16,"Evi Nuning Faridah,S.Pd.I","P","Lumajang","1987-10-16","Tenaga Pendidik","Guru","019","/MINI.L-Kid/ 30.02.02/SK/VII/2015"]
[17,"Nurul Lathifah","P","Lumajang","1992-07-12","Tenaga Pendidik","Guru","020","/MINI.L-Kid/ 30.02.02/SK/VII/2015"]
[18,"Nurul 'Ain","P","Lumajang","1977-11-28","Tenaga Pendidik","Koordinator Tilawati","021","/MINI.L-Kid/ 30.02.02/SK/VII/2015"]
[19,"Uul Mas'ulah","P","Lumajang",null,"Tenaga Pendidik","Guru","022","/MINI.L-Kid/ 30.02.02/SK/VII/2015"]
[20,"Stephanie Ayu Sakethi","P","Lumajang","1991-03-10","Tenaga Kependidikan","Staff Tata Usaha","023","/MINI.L-Kid/ 30.02.02/SK/VII/2015"]
[21,"Solikhati","P","Lumajang","1973-09-27","Tenaga Kependidikan","Penjaga Kantin","024","/MINI.L-Kid/ 30.02.02/SK/VII/2016"]
[22,"Musthofa","L","Lumajang",null,"Tenaga Kependidikan","Penjaga Sekolah","025","/MINI.L-Kid/ 30.02.02/SK/VII/2016"]
[23,"Chusni Kurniawan,S.Pd.","L","Lumajang","1987-03-09","Tenaga Kependidikan","Kepala Tata Usaha","026","/MINI.L-Kid/ 30.02.02/SK/VII/2016"]
[24,"Khusnul Adibah,S.Pd.I","P","Lumajang","1968-10-03","Tenaga Kependidikan","PKM. Sarana Prasarana","027","/MINI.L-Kid/ 30.02.02/SK/VII/2016"]
[25,"Azan Tudhoni","L","Lumajang","1990-11-26","Tenaga Kependidikan","PKM. Kesiswaan","028","/MINI.L-Kid/ 30.02.02/SK/VII/2016"]
[26,"Nurul Hidayah, S.Pd.I, MA","P","Lumajang","1975-11-05","Tenaga Kependidikan","PKM. Keuangan","029","/MINI.L-Kid/ 30.02.02/SK/VII/2016"]
[27,"Ahmad Shodiq,S.H.","L","Lumajang","1977-05-15","Tenaga Kependidikan","PKM. Humas","030","/MINI.L-Kid/ 30.02.02/SK/VII/2016"]
[28,null,null,null,null,null,null,"031"]
[29,null,null,null,null,null,null,"032"]
[30,null,null,null,null,null,null,"033"]
[31,null,null,null,null,null,null,"034"]
[32,null,null,null,null,null,null,"035"]
[33,null,null,null,null,null,null,"036"]
[34,null,null,null,null,null,null,"037"]
[35,null,null,null,null,null,null,"038"]
[36,null,null,null,null,null,null,"039"]
[37,null,null,null,null,null,null,"040"]
[38,null,null,null,null,null,null,"041"]
[39,null,null,null,null,null,null,"042"]
[40,null,null,null,null,null,null,"043"]
["Tahun Pelajaran",null,"2015/2016"]
[]
["Nama Sekolah",null,"MI NURUL ISLAM LABRUK KIDUL"]
[]
["Nama KS",null,"SAHRONI,S.Pd.I"]
[]
["JABATAN YANG DI SK",null,"Kepala Tata Usaha",null,"No. SK"]
[]
[null,null,"Staff Tata Usaha"]
[]
[null,null,"PKM. Kurikulum"]
[]
[null,null,"Bendahara Madrasah"]
[]
[null,null,"PKM. Kesiswaan"]
[]
[null,null,"PKM. Sarana dan Prasarana"]
[]
[null,null,"PKM. Humas"]
[]
[null,null,"Guru Tetap Yayasan"]
[]
[null,null,"Koordinator Tilawati"]
[]
["tanggal SK",null,"2015-07-17"]
["TMT SK",null,"2015-07-17"]
["berlaku sd",null,"2016-07-16"]
["ditetapkan di",null,"Labruk Kidul"]

{"sheet":"SK1617","index":6,"n_rows":49,"n_cols":8,"rows_kept":49,"cut":false,"hidden":false,"merged":[[17,3,17,5],[18,3,18,5],[23,3,23,5],[30,0,30,5],[37,3,37,5],[14,0,14,5],[8,0,8,5],[9,0,9,5],[11,0,11,5],[12,0,12,5],[13,0,13,5]]}
[]
[]
[]
[]
[]
[]
[]
[null,null,null,null,null,null,null,5]
["SURAT KEPUTUSAN KEPALA MI.NURUL ISLAM LABRUK KIDUL"]
[{"$f":"\"NOMOR : \"&VLOOKUP('SK1617'!H8,DTPERSON1617!A5:I44,8)&VLOOKUP('SK1617'!H8,DTPERSON1617!A5:I44,9)","v":"NOMOR : 008/MINI.L-Kid/ 30.02.02/SK/VII/2016"},null,null,null,null,null,null,{"$f":"VLOOKUP('SK1617'!H8,DTPERSON1617!A5:I44,7)","v":"Guru"}]
[]
["TENTANG"]
[{"$f":"\"PENGANGKATAN \"&UPPER(VLOOKUP('SK1617'!H8,DTPERSON1617!A5:I44,6))","v":"PENGANGKATAN TENAGA PENDIDIK"}]
["DI LINGKUNGAN LEMBAGA PENDIDIKAN MA’ARIF NU"]
[{"$f":"\"Tahun Pelajaran \"&DTPERSON1617!C45","v":"Tahun Pelajaran 2016/2017"}]
[]
[]
["Menimbang",":","1.",{"$f":"\"Bahwa guna melancarkan pelaksanaan \"&IF(H10=\"Guru\",RUMUS!I3,IF(H10=\"Kepala Tata Usaha\",RUMUS!I4,IF(H10=\"Staff Tata Usaha\",RUMUS!I4,IF(H10=\"PKM. Sarana Prasarana\",RUMUS!I6,IF(H10=\"PKM. Keuangan\",RUMUS!I8,IF(H10=\"PKM. Kesiswaan\",RUMUS!I7,IF(H10=\"PKM. Humas\",RUMUS!I9,IF(H10=\"Koordinator Tilawati\",RUMUS!I10,\"\"))))))))&\" \"&H10&\" pada \"&UPPER(DATASK!C3)","v":"Bahwa guna melancarkan pelaksanaan Kegiatan Belajar Mengajar perlu ditetapkan Guru pada MI NURUL ISLAM LABRUK KIDUL"}]
[null,null,"2.",{"$f":"\"Bahwa untuk menjamin terpeliharanya Tata Tertib serta kelancaran tugas -  tugas pokok \"&(VLOOKUP('SK1617'!H8,DTPERSON1617!A5:I44,7))&\" perlu diatur dalam Surat Keputusan Kepala Madrasah.\"","v":"Bahwa untuk menjamin terpeliharanya Tata Tertib serta kelancaran tugas -  tugas pokok Guru perlu diatur dalam Surat Keputusan Kepala Madrasah."}]
[]
["Mengingat",":","1.","Undang – undang nomor 20 Tahun 2003, tentang Sistem Pendidikan Nasional"]
[null,null,"2.","Peraturan Pemerintah RI Nomor 29 Tahun 1990."]
[null,null,"3.","Keputusan Mentri Pendayagunaan Aparatur Negara Nomor Tahun 1993"]
[null,null,"4.","Surat Keputusan bersama Mentri Pendidikan dan Kebudayaan dan Kepala  Badan Administrasi Kepegawaian Negara Nomor : 0433/P/1993 dan Nomor :  25/P/1993."]
[null,null,"5.","Keputusan Mentri Pendidikan Nasional Nomor : 084/U/2004."]
[null,null,null,"  "]
[]
[]
["Memperhatikan ",":",{"$f":"\"Hasil rapat Dewan Guru \"&PROPER(DATASK!C3)","v":"Hasil rapat Dewan Guru Mi Nurul Islam Labruk Kidul"}]
[]
["MEMUTUSKAN"]
["Menetapkan",":","1.","Mengangkat Saudara :"]
[null,null,null,"      Nama",{"$f":"\": \"&VLOOKUP('SK1617'!H8,DTPERSON1617!A5:I44,2)","v":": Khusnul Adibah,S.Pd.I"}]
[null,null,null,"      Jenis Kelamin",{"$f":"\": \"&IF(VLOOKUP('SK1617'!H8,DTPERSON1617!A5:I44,3)=\"L\",\"Laki-laki\",\"Perempuan\")","v":": Perempuan"}]
[null,null,null,"      Tempat/tanggal lahir",{"$f":"\": \"&VLOOKUP('SK1617'!H8,DTPERSON1617!A5:I44,4)&\", \"&TEXT(VLOOKUP('SK1617'!H8,DTPERSON1617!A5:I44,5),\"dd mmmm yyyy\")","v":": Lumajang, 03 Oktober 1968"}]
[null,null,null,"      Sebagai ",{"$f":"\": \"&VLOOKUP('SK1617'!H8,DTPERSON1617!A5:I44,7)","v":": Guru"}]
[null,null,null,"      Tanggal Mulai tugas",{"$f":"\": \"&TEXT(DTPERSON1617!C70,\"dd mmmm yyyy\")","v":": 17 Juli 2016"}]
[null,null,"2.",{"$f":"\"mengamanatkan kepada yang bersangkutan tersebut diatas untuk  melaksanakan tugasnya dengan sebaik baiknya dan bertanggung jawab berdasarkan pedoman dan ketentuan yang berlaku pada \"&DTPERSON1617!C47","v":"mengamanatkan kepada yang bersangkutan tersebut diatas untuk  melaksanakan tugasnya dengan sebaik baiknya dan bertanggung jawab berdasarkan pedoman dan ketentuan yang berlaku pada MI NURUL ISLAM LABRUK KIDUL"}]
[null,null,"3.",{"$f":"\"Surat Keputusan ( SK ) ini berlaku sampai dengan tanggal \"&TEXT(DTPERSON1617!C71,\"dd mmmm yyyy\")","v":"Surat Keputusan ( SK ) ini berlaku sampai dengan tanggal 16 Juli 2017"}]
[]
[null,null,null,null,"Ditetapkan di ",{"$f":"\": \"&DTPERSON1617!C72","v":": Labruk Kidul"}]
["                                        ",null,null,null,"Pada Tanggal",{"$f":"\": \"&TEXT(DTPERSON1617!C69,\"dd mmmm yyyy\")","v":": 17 Juli 2016"}]
["  ",null,null,null,{"$f":"UPPER(\"Kepala Madrasah\")","v":"KEPALA MADRASAH"}]
[null,null,null,null,{"$f":"UPPER(DATASK!C3)","v":"MI NURUL ISLAM LABRUK KIDUL"}]
[]
[]
[]
[]
[null,null,null,null,{"$f":"DATASK!C5","v":"SAHRONI,S.Pd.I"}]

{"sheet":"LPJ1617","index":7,"n_rows":166,"n_cols":21,"rows_kept":166,"cut":false,"hidden":false,"merged":[[157,0,157,4],[151,0,152,0],[151,1,152,2],[151,3,152,3],[151,20,152,20],[153,0,154,0],[153,1,154,2],[153,3,154,3],[153,20,154,20],[148,3,150,3],[148,20,150,20],[129,0,138,0],[129,3,138,3],[129,20,138,20],[132,1,132,2],[133,1,133,2],[134,1,134,2],[139,0,147,0],[139,3,147,3],[139,20,147,20],[143,1,143,2],[144,1,144,2],[109,0,118,0],[109,3,118,3],[109,20,118,20],[113,1,113,2],[119,0,128,0],[119,3,128,3],[119,20,128,20],[124,1,124,2],[89,0,98,0],[89,20,98,20],[93,1,93,2],[99,0,108,0],[99,3,108,3],[99,20,108,20],[103,1,103,2],[104,1,104,2],[67,0,77,0],[67,3,77,3],[67,20,77,20],[72,1,72,2],[73,1,73,2],[78,0,88,0],[78,20,88,20],[83,1,83,2],[83,3,87,3],[84,1,84,2],[45,0,55,0],[45,3,55,3],[45,20,55,20],[50,1,50,2],[51,1,51,2],[56,0,66,0],[56,3,66,3],[56,20,66,20],[61,1,61,2],[62,1,62,2],[34,0,44,0],[34,3,44,3],[34,20,44,20],[9,1,9,2],[10,0,11,0],[10,1,11,2],[10,3,11,3],[10,20,11,20],[12,0,22,0],[12,3,22,3],[12,20,22,20],[23,0,33,0],[23,3,33,3],[23,20,33,20],[28,1,28,2],[29,1,29,2],[4,0,4,20],[5,0,5,20],[6,0,6,20],[7,0,8,0],[7,1,8,2],[7,4,8,4],[7,5,7,17],[7,18,8,18],[7,19,8,19],[7,20,8,20]]}
["Lampiran 2",null,{"$f":"[1]Tugas!C1","v":": SK Kepala MIS. Nurul Islam Labruk Kidul"}]
["Nomor",null,{"$f":"[1]Tugas!C2","v":": 001/MINI.L-Kid/30.02.02/SK.S.1-0/VII/2017"}]
["Tanggal",null,{"$f":"[1]Tugas!C3","v":": 15 Juli 2017"}]
[]
["DATA TUGAS MENGAJAR DAN JUMLAH JAM MENGAJAR"]
["MI. MA'ARIF NU NURUL ISLAM LABRUK KIDUL - SUMBERSUKO"]
["TAHUN PELAJARAN 2017/2018"]
["NO","NAMA GURU",null,"KD","TUGAS MENGAJAR","Jumlah Jam Dalam Kelas",null,null,null,null,null,null,null,null,null,null,null,null,"KS","JML JAM PER-BDG STUDI","JML JAM TOTAL"]
[null,null,null,"GURU",null,"1a","1b","1c","2a","2b","3a","3b","4a","4b","5a","5b","6a","6b"]
[1,"Sahroni, S.Pd.I",null,null,"Aswaja",null,null,null,null,null,null,null,null,null,null,null,2,2,18,{"$f":"SUM(F10:S10)","v":22},{"$f":"SUM(T10:T10)","v":22}]
[2,"M. Said",null,null,"B. Arab",null,null,null,null,null,null,null,2,2,2,2,2,2,null,12,{"$f":"SUM(T11:T12)","v":24}]
[null,null,null,null,"Nahwu/Shorof",null,null,null,null,null,null,null,2,2,2,2,2,2,null,12]
[3,null,null,null,"Matematika",4,null,null,null,null,null,null,null,null,null,null,null,null,null,4,{"$f":"SUM(F13:R23)","v":30}]
[null,null,null,null,"IPA/Sains",3,null,null,null,null,null,null,null,null,null,null,null,null,null,3]
[null,null,null,null,"B. Indonesia",4,null,null,null,null,null,null,null,null,null,null,null,null,null,4]
[null,null,null,null,"IPS",3,null,null,null,null,null,null,null,null,null,null,null,null,null,3]
[null,null,null,null,"PPKn",2,null,null,null,null,null,null,null,null,null,null,null,null,null,2]
[null,"Khusnul Adibah, S.Pd.I",null,null,"Kertakes",3,null,null,null,null,null,null,null,null,null,null,null,null,null,3]
[null,"(WALI KELAS I A)",null,null,"Fiqih",2,null,null,null,null,null,null,null,null,null,null,null,null,null,2]
[null,null,null,null,"AlQuran Hadits",2,null,null,null,null,null,null,null,null,null,null,null,null,null,2]
[null,null,null,null,"Aqidah Akhlaq",2,null,null,null,null,null,null,null,null,null,null,null,null,null,2]
[null,null,null,null,"Bhs Inggris",1,null,null,null,null,null,null,null,null,null,null,null,null,null,1]
[null,null,null,null,"Penjaskes",4,null,null,null,null,null,null,null,null,null,null,null,null,null,4]
[4,null,null,null,"Matematika",null,4,null,null,null,null,null,null,null,null,null,null,null,null,{"$f":"SUM(G24:S24)","v":4},{"$f":"SUM(T24:T34)","v":30}]
[null,null,null,null,"IPA/Sains",null,3,null,null,null,null,null,null,null,null,null,null,null,null,3]
[null,null,null,null,"B. Indonesia",null,4,null,null,null,null,null,null,null,null,null,null,null,null,4]
[null,null,null,null,"IPS",null,3,null,null,null,null,null,null,null,null,null,null,null,null,3]
[null,null,null,null,"PPKn",null,2,null,null,null,null,null,null,null,null,null,null,null,null,2]
[null,"Evi Nuning Faridah, S.Pd.I",null,null,"Kertakes",null,3,null,null,null,null,null,null,null,null,null,null,null,null,3]
[null,"(WALI KELAS I B)",null,null,"Fiqih",null,2,null,null,null,null,null,null,null,null,null,null,null,null,2]
[null,null,null,null,"AlQuran Hadits",null,2,null,null,null,null,null,null,null,null,null,null,null,null,2]
[null,null,null,null,"Aqidah Akhlaq",null,2,null,null,null,null,null,null,null,null,null,null,null,null,2]
[null,null,null,null,"Bhs Inggris",null,1,null,null,null,null,null,null,null,null,null,null,null,null,1]
[null,null,null,null,"Penjaskes",null,4,null,null,null,null,null,null,null,null,null,null,null,null,4]
[5,null,null,null,"Matematika",null,null,4,null,null,null,null,null,null,null,null,null,null,null,4,30]
[null,null,null,null,"IPA/Sains",null,null,3,null,null,null,null,null,null,null,null,null,null,null,3]
[null,null,null,null,"B. Indonesia",null,null,4,null,null,null,null,null,null,null,null,null,null,null,4]
[null,null,null,null,"IPS",null,null,3,null,null,null,null,null,null,null,null,null,null,null,3]
[null,null,null,null,"PPKn",null,null,2,null,null,null,null,null,null,null,null,null,null,null,2]
[null,"Siti Munfaridah,S.Pd",null,null,"Kertakes",null,null,3,null,null,null,null,null,null,null,null,null,null,null,3]
[null,"(WALI KELAS I C)",null,null,"Fiqih",null,null,2,null,null,null,null,null,null,null,null,null,null,null,2]
[null,null,null,null,"AlQuran Hadits",null,null,2,null,null,null,null,null,null,null,null,null,null,null,2]
[null,null,null,null,"Aqidah Akhlaq",null,null,2,null,null,null,null,null,null,null,null,null,null,null,2]
[null,null,null,null,"Bhs Inggris",null,null,1,null,null,null,null,null,null,null,null,null,null,null,1]
[null,null,null,null,"Penjaskes",null,null,4,null,null,null,null,null,null,null,null,null,null,null,4]
[6,null,null,null,"Matematika",null,null,null,4,null,null,null,null,null,null,null,null,null,null,{"$f":"SUM(F46:S46)","v":4},{"$f":"SUM(T46:T56)","v":30}]
[null,null,null,null,"IPA/Sains",null,null,null,3,null,null,null,null,null,null,null,null,null,null,3]
[null,null,null,null,"B. Indonesia",null,null,null,4,null,null,null,null,null,null,null,null,null,null,4]
[null,null,null,null,"IPS",null,null,null,3,null,null,null,null,null,null,null,null,null,null,3]
[null,null,null,null,"PPKn",null,null,null,2,null,null,null,null,null,null,null,null,null,null,2]
[null,"Minuk Ika Wulandari, S.Pd.I",null,null,"Kertakes",null,null,null,3,null,null,null,null,null,null,null,null,null,null,3]
[null,"(WALI KELAS II A)",null,null,"Fiqih",null,null,null,2,null,null,null,null,null,null,null,null,null,null,2]
[null,null,null,null,"AlQuran Hadits",null,null,null,2,null,null,null,null,null,null,null,null,null,null,2]
[null,null,null,null,"Aqidah Akhlaq",null,null,null,2,null,null,null,null,null,null,null,null,null,null,2]
[null,null,null,null,"Bhs Inggris",null,null,null,1,null,null,null,null,null,null,null,null,null,null,1]
[null,null,null,null,"Penjaskes",null,null,null,4,null,null,null,null,null,null,null,null,null,null,4]
[7,null,null,null,"Matematika",null,null,null,null,4,null,null,null,null,null,null,null,null,null,4,{"$f":"SUM(T57:T67)","v":30}]
[null,null,null,null,"IPA/Sains",null,null,null,null,3,null,null,null,null,null,null,null,null,null,3]
[null,null,null,null,"B. Indonesia",null,null,null,null,4,null,null,null,null,null,null,null,null,null,4]
[null,null,null,null,"IPS",null,null,null,null,3,null,null,null,null,null,null,null,null,null,3]
[null,null,null,null,"PPKn",null,null,null,null,2,null,null,null,null,null,null,null,null,null,2]
[null,"Nurul Lathifah,S.Pd.I",null,null,"Kertakes",null,null,null,null,3,null,null,null,null,null,null,null,null,null,3]
[null,"(WALI KELAS II B)",null,null,"Fiqih",null,null,null,null,2,null,null,null,null,null,null,null,null,null,2]
[null,null,null,null,"AlQuran Hadits",null,null,null,null,2,null,null,null,null,null,null,null,null,null,2]
[null,null,null,null,"Aqidah Akhlaq",null,null,null,null,2,null,null,null,null,null,null,null,null,null,2]
[null,null,null,null,"Bhs Inggris",null,null,null,null,1,null,null,null,null,null,null,null,null,null,1]
[null,null,null,null,"Penjaskes",null,null,null,null,4,null,null,null,null,null,null,null,null,null,4]
[8,null,null,null,"Matematika",null,null,null,null,null,5,null,null,null,null,null,null,null,null,5,{"$f":"SUM(T68:T78)","v":31}]
[null,null,null,null,"IPA/Sains",null,null,null,null,null,4,null,null,null,null,null,null,null,null,4]
[null,null,null,null,"B. Indonesia",null,null,null,null,null,4,null,null,null,null,null,null,null,null,4]
[null,null,null,null,"IPS",null,null,null,null,null,3,null,null,null,null,null,null,null,null,3]
[null,null,null,null,"PPKn",null,null,null,null,null,2,null,null,null,null,null,null,null,null,2]
[null,"Muhammad Khoiri,S.Pd.I",null,null,"Bhs Daerah",null,null,null,null,null,2,null,null,null,null,null,null,null,null,2]
[null,"(WALI KELAS III A)",null,null,"Fiqih",null,null,null,null,null,2,null,null,null,null,null,null,null,null,2]
[null,null,null,null,"AlQuran Hadits",null,null,null,null,null,2,null,null,null,null,null,null,null,null,2]
[null,null,null,null,"Aqidah Akhlaq",null,null,null,null,null,2,null,null,null,null,null,null,null,null,2]
[null,null,null,null,"KTK",null,null,null,null,null,3,null,null,null,null,null,null,null,null,3]
[null,null,null,null,"Bhs Inggris",null,null,null,null,null,2,null,null,null,null,null,null,null,null,2]
[9,null,null,null,"Matematika",null,null,null,null,null,null,5,null,null,null,null,null,null,null,5,{"$f":"SUM(T79:T89)","v":31}]
[null,null,null,null,"IPA/Sains",null,null,null,null,null,null,4,null,null,null,null,null,null,null,4]
[null,null,null,null,"B. Indonesia",null,null,null,null,null,null,4,null,null,null,null,null,null,null,4]
[null,null,null,null,"IPS",null,null,null,null,null,null,3,null,null,null,null,null,null,null,3]
[null,null,null,null,"PPKn",null,null,null,null,null,null,2,null,null,null,null,null,null,null,2]
[null,"Sumarmi,S.Pd.I",null,null,"Bhs Daerah",null,null,null,null,null,null,2,null,null,null,null,null,null,null,2]
[null,"(WALI KELAS III B)",null,null,"Fiqih",null,null,null,null,null,null,2,null,null,null,null,null,null,null,2]
[null,null,null,null,"AlQuran Hadits",null,null,null,null,null,null,2,null,null,null,null,null,null,null,2]
[null,null,null,null,"Aqidah Akhlaq",null,null,null,null,null,null,2,null,null,null,null,null,null,null,2]
[null,null,null,null,"KTK",null,null,null,null,null,null,3,null,null,null,null,null,null,null,3]
[null,null,null,null,"Bhs Inggris",null,null,null,null,null,null,2,null,null,null,null,null,null,null,2]
[10,null,null,null,"MTK",null,null,null,null,null,null,null,5,null,null,null,null,null,null,5,{"$f":"SUM(M90:M99)","v":29}]
[null,null,null,null,"IPA/Sains",null,null,null,null,null,null,null,4,null,null,null,null,null,null,4]
[null,null,null,null,"B. Indonesia",null,null,null,null,null,null,null,5,null,null,null,null,null,null,5]
[null,"Chusni Kurniawan, S.Pd",null,null,"IPS",null,null,null,null,null,null,null,3,null,null,null,null,null,null,3]
[null,"(WALI KELAS IV A)",null,null,"PPKn",null,null,null,null,null,null,null,2,null,null,null,null,null,null,2]
[null,null,null,null,"Kertakes",null,null,null,null,null,null,null,2,null,null,null,null,null,null,2]
[null,null,null,null,"Fiqih",null,null,null,null,null,null,null,2,null,null,null,null,null,null,2]
[null,null,null,null,"AlQuran Hadits",null,null,null,null,null,null,null,2,null,null,null,null,null,null,2]
[null,null,null,null,"Bhs Inggris",null,null,null,null,null,null,null,2,null,null,null,null,null,null,2]
[null,null,null,null,"Aswaja",null,null,null,null,null,null,null,2,null,null,null,null,null,null,2]
[11,null,null,null,"MTK",null,null,null,null,null,null,null,null,5,null,null,null,null,null,5,{"$f":"SUM(T100:T109)","v":29}]
[null,null,null,null,"IPA/Sains",null,null,null,null,null,null,null,null,4,null,null,null,null,null,4]
[null,null,null,null,"B. Indonesia",null,null,null,null,null,null,null,null,5,null,null,null,null,null,5]
[null,null,null,null,"IPS",null,null,null,null,null,null,null,null,3,null,null,null,null,null,3]
[null,"LIYA SHOBIHATUL Q,S.Pd",null,null,"PPKn",null,null,null,null,null,null,null,null,2,null,null,null,null,null,2]
[null,"(WALI KELAS VI B)",null,null,"Kertakes",null,null,null,null,null,null,null,null,2,null,null,null,null,null,2]
[null,null,null,null,"Fiqih",null,null,null,null,null,null,null,null,2,null,null,null,null,null,2]
[null,null,null,null,"AlQuran Hadits",null,null,null,null,null,null,null,null,2,null,null,null,null,null,2]
[null,null,null,null,"Bhs Inggris",null,null,null,null,null,null,null,null,2,null,null,null,null,null,2]
[null,null,null,null,"Aswaja",null,null,null,null,null,null,null,null,2,null,null,null,null,null,2]
[12,null,null,null,"Matematika",null,null,null,null,null,null,null,null,null,5,null,null,null,null,{"$f":"SUM(F110:S110)","v":5},{"$f":"SUM(T110:T119)","v":29}]
[null,null,null,null,"IPA/Sains",null,null,null,null,null,null,null,null,null,4,null,null,null,null,4]
[null,null,null,null,"B. Indonesia",null,null,null,null,null,null,null,null,null,5,null,null,null,null,5]
[null,null,null,null,"IPS",null,null,null,null,null,null,null,null,null,3,null,null,null,null,3]
[null,"Ahmad Shodiq,SH",null,null,"PPKn",null,null,null,null,null,null,null,null,null,2,null,null,null,null,2]
[null,"(WALI KELAS V A)",null,null,"Kertakes",null,null,null,null,null,null,null,null,null,2,null,null,null,null,2]
[null,null,null,null,"Fiqih",null,null,null,null,null,null,null,null,null,2,null,null,null,null,2]
[null,null,null,null,"AlQuran Hadits",null,null,null,null,null,null,null,null,null,2,null,null,null,null,2]
[null,null,null,null,"Bhs Inggris",null,null,null,null,null,null,null,null,null,2,null,null,null,null,2]
[null,null,null,null,"Aswaja",null,null,null,null,null,null,null,null,null,2,null,null,null,null,2]
[13,null,null,null,"Matematika",null,null,null,null,null,null,null,null,null,null,5,null,null,null,5,{"$f":"SUM(T120:T129)","v":29}]
[null,null,null,null,"IPA/Sains",null,null,null,null,null,null,null,null,null,null,4,null,null,null,4]
[null,null,null,null,"B. Indonesia",null,null,null,null,null,null,null,null,null,null,5,null,null,null,5]
[null,null,null,null,"IPS",null,null,null,null,null,null,null,null,null,null,3,null,null,null,3]
[null,"NUR RATNA P, S.Pd",null,null,"PPKn",null,null,null,null,null,null,null,null,null,null,2,null,null,null,2]
[null,"(WALI KELAS V B)",null,null,"Kertakes",null,null,null,null,null,null,null,null,null,null,2,null,null,null,2]
[null,null,null,null,"Fiqih",null,null,null,null,null,null,null,null,null,null,2,null,null,null,2]
[null,null,null,null,"AlQuran Hadits",null,null,null,null,null,null,null,null,null,null,2,null,null,null,2]
[null,null,null,null,"Bhs Inggris",null,null,null,null,null,null,null,null,null,null,2,null,null,null,2]
[null,null,null,null,"Aswaja",null,null,null,null,null,null,null,null,null,null,2,null,null,null,2]
[14,null,null,null,"Matematika",null,null,null,null,null,null,null,null,null,null,null,5,null,null,5,{"$f":"SUM(T130:T139)","v":31}]
[null,null,null,null,"IPA/Sains",null,null,null,null,null,null,null,null,null,null,null,4,null,null,4]
[null,null,null,null,"B. Indonesia",null,null,null,null,null,null,null,null,null,null,null,5,null,null,5]
[null,null,null,null,"IPS",null,null,null,null,null,null,null,null,null,null,null,3,null,null,3]
[null,"Chayul Mu'afa,S.Ag",null,null,"PPKn",null,null,null,null,null,null,null,null,null,null,null,2,null,null,2]
[null,"(WALI KELAS VI A)",null,null,"KTK",null,null,null,null,null,null,null,null,null,null,null,2,null,null,2]
[null,null,null,null,"Fiqih",null,null,null,null,null,null,null,null,null,null,null,2,null,null,2]
[null,null,null,null,"AlQuran Hadits",null,null,null,null,null,null,null,null,null,null,null,2,null,null,2]
[null,null,null,null,"Aqidah Akhlaq",null,null,null,null,null,null,null,null,null,null,null,2,null,null,2]
[null,null,null,null,"Bhs Daerah",null,null,null,null,null,null,null,null,null,null,null,2,2,null,4]
[15,null,null,null,"Matematika",null,null,null,null,null,null,null,null,null,null,null,null,5,null,5,{"$f":"SUM(T140:T148)","v":27}]
[null,null,null,null,"IPA/Sains",null,null,null,null,null,null,null,null,null,null,null,null,4,null,4]
[null,null,null,null,"B. Indonesia",null,null,null,null,null,null,null,null,null,null,null,null,5,null,5]
[null,null,null,null,"IPS",null,null,null,null,null,null,null,null,null,null,null,null,3,null,3]
[null,"Nurul Hidayah,S.Pd.I,MA",null,null,"PPKn",null,null,null,null,null,null,null,null,null,null,null,null,2,null,2]
[null,"(WALI KELAS VI B)",null,null,"KTK",null,null,null,null,null,null,null,null,null,null,null,null,2,null,2]
[null,null,null,null,"Fiqih",null,null,null,null,null,null,null,null,null,null,null,null,2,null,2]
[null,null,null,null,"AlQuran Hadits",null,null,null,null,null,null,null,null,null,null,null,null,2,null,2]
[null,null,null,null,"Aqidah Akhlaq",null,null,null,null,null,null,null,null,null,null,null,null,2,null,2]
[16,"Yuliana,S.Pd.i",null,null,"SKI",null,null,null,null,null,2,2,2,2,2,2,2,2,null,16,{"$f":"SUM(T149:T151)","v":29}]
[null,null,null,null,"Aqidah Akhlaq",null,null,null,null,null,null,null,2,2,2,2,null,null,null,8]
[null,null,null,null,"Bhs Daerah",1,1,1,1,1,null,null,null,null,null,null,null,null,null,5]
[17,"Muh. Zuhdi Agusriyanto, S.Pd",null,null,"Penjaskes",null,null,null,null,null,null,null,4,4,4,4,4,4,null,{"$f":"SUM(F152:S152)","v":24},{"$f":"SUM(T152:T153)","v":28}]
[null,null,null,null,"Bhs Daerah",null,null,null,null,null,null,null,null,null,2,2,null,null,null,{"$f":"SUM(F153:S153)","v":4}]
[18,"Azan Tudhoni, S. Pd",null,null,"Penjaskes",null,null,null,null,null,4,4,null,null,null,null,null,null,null,8,{"$f":"SUM(T154:T155)","v":12}]
[null,null,null,null,"Bhs Daerah",null,null,null,null,null,null,null,2,2,null,null,null,null,null,4]
[19,"Nurul Ain",null,null,"B. Arab",2,2,2,2,2,2,2,null,null,null,null,null,null,null,14,{"$f":"T156","v":14}]
[20,"Uul Mas'ulah",null,null,"B Inggris",null,null,null,null,null,null,null,null,null,null,null,2,2,null,4,{"$f":"T157","v":4}]
["TOTAL JAM MENGAJAR",null,null,null,null,{"$f":"SUM(F10:F157)","v":33},null,{"$f":"SUM(H10:H157)","v":33},33,33,39,39,43,43,43,43,43,43,{"$f":"SUM(S10:S155)","v":18},{"$f":"SUM(F158:S158)","v":486},{"$f":"SUM(U10:U157)","v":519}]
[]
[]
[]
[null,null,"Kepala Kantor Kementerian Agama",null,null,null,null,null,null,null,null,null,null,null,null,null,null,{"$f":"DTPERSON1516!C72&\", \"&TEXT(DTPERSON1617!C69,\"dd mmmm yyyy\")","v":"Labruk Kidul, 17 Juli 2016"}]
[null,null,"Kabupaten Lumajang",null,null,null,null,null,null,null,null,null,null,null,null,null,null,{"$f":"[1]Tugas!F52","v":"Kepala Madrasah"}]
[]
[null,null,"Drs. H. MOH. JUM AFANDI, M.Pd.I"]
[null,null,"NIP. 19580822 1999109 1 002",null,null,null,null,null,null,null,null,null,null,null,null,null,null,{"$f":"[1]Tugas!F55","v":"SAHRONI,S.Pd.I"}]

{"sheet":"LPT1617","index":8,"n_rows":55,"n_cols":9,"rows_kept":55,"cut":false,"hidden":false,"merged":[[35,5,35,6],[16,5,16,6],[18,5,29,6],[30,5,30,6],[31,5,31,6],[32,5,32,6],[33,5,33,6],[9,5,15,6],[4,0,5,0],[4,1,5,2],[4,3,5,4],[4,5,5,6],[6,5,7,6]]}
["Lampiran 1 ",null,": SK Kepala MIS. Nurul Islam Labruk Kidul"]
["Nomor",null,": 001/MINI.L-Kid/30.02.02/SK.S.1-0/VII/2017"]
["Tanggal",null,{"$f":"\": \"&\"15 Juli 2017\"","v":": 15 Juli 2017"},null,null,null,null,null,"2016-06-11"]
[]
["NO","N A M A",null,"JENIS TUGAS",null,"KETERANGAN"]
[]
["01","KEPALA MADRASAH"]
[null,"1. SAHRONI,S.Pd.I",null,"Ø","Kepala Madrasah"]
["02","PEMBANTU KEPALA MADRASAH"]
[null,"2.1.AZAN TUDHONI, S.Pd",null,"Ø","PKM Kesiswaan","Membantu Kepala Madrasah"]
[null,"2.2. NURUL HIDAYAH, S.Pd.I. MA",null,"Ø","PKM Tenaga Kependidikan"]
[null,"2.3. NUR RATNA PRIHATININGSIH, S.Pd",null,"Ø","PKM Kurikulum"]
[null,"2.4. KHUSNUL ADIBAH, S.Pd.I",null,"Ø","PKM Sarana Prasarana"]
[null,"2.5. AHMAD SHODIQ, SH",null,"Ø","PKM. Humas"]
["03","BENDAHARA"]
[null,"1. NURUL HIDAYAH, S.Pd.I,MA",null,"Ø","Bendahara Umum"]
["04","WALI KELAS"]
[null,"1. KHUSNUL ADIBAH, S.Pd.I",null,"Ø","Wali Kelas I. A"]
[null,"2. EVY NUNING FARIDAH, S.Pd.I",null,"Ø","Wali Kelas I. B","Membantu PKM. Kurikulum"]
[null,"3. SITI MUNFARIDAH, S.Pd",null,"Ø","Wali Kelas I. C"]
[null,"4. MINUK IKA WULANDARI, S.Pd.I",null,"Ø","Wali Kelas II A"]
[null,"5. NURUL LATHIFAH, S.Pd.I",null,"Ø","Wali Kelas II B"]
[null,"6. MUHAMMAD KHOIRI, S.Pd",null,"Ø","Wali Kelas III A"]
[null,"7. SUMARMI, S,Pd.I",null,"Ø","Wali Kelas III B"]
[null,"8. CHUSNI KURNIAWAN, S.Pd",null,"Ø","Wali Kelas IV. A"]
[null,"9. LIYA SHOBIHATUL QUDRIYAH, S.Pd",null,"Ø","Wali Kelas IV. B"]
[null,"10. AHMAD SHODIQ, SH",null,"Ø","Wali Kelas V. A"]
[null,"11. NUR RATNA PRIHATININGSIH, S.Pd",null,"Ø","Wali Kelas V. B"]
[null,"12. CHAYUL MU'AFA, S.Ag",null,"Ø","Wali Kelas VI A"]
[null,"13. NURUL HIDAYAH, S.Pd.I MA",null,"Ø","Wali Kelas VI B"]
["05","OPERATOR",null,null,null,"Membantu :"]
[null,"1. CHUSNI KURNIAWAN,S.Pd",null,"Ø","mengelola administrasi berbasis IT","- Kepala Madrasah dan TU"]
["06","KEPALA TATA USAHA",null,"Ø","Mengelola, Menyiapkan dan","Membantu :"]
[null,"1. STEPHANIE AYU SAKETHI",null,null,"membuat data/Administrasi","- Kepala Madrasah"]
["07","KOPERASI PERALATAN SEKOLAH",null,"Ø","Mengelola Koperasi Serta","- Wali Kelas"]
[null,"1. ROFIATUL MAZIDAH",null,null,"menyediakan kebutuhan murid","Membantu WK. Kesiswaan"]
["08","KOPERASI KANTIN"]
[null,"1. SHOLIKHATI",null,"Ø","Mengelola Kantin"]
[null,"2. YULIANA, S. Pd I"]
["09","TABUNGAN"]
[null,"1. STEPHANIE AYU SAKETHI"]
["10","PERPUSTAKAAN",null,"Ø","Mengelola Perpustakaan Madrasah"]
[null,"1. NURUL LATHIFAH, S.Pd.I"]
["11","UKS",null,"Ø","Mengelola UKS Madrasah"]
[null,"1. MUH. ZUHDI AGUSRIYANTO, S.Pd"]
[12,"KEAMANAN/SECURITY",null,"Ø","Keamanan Madrasah"]
[null,"1. M. SAIKHU"]
[13,"WALKER/TUKANG KEBUN",null,"Ø","Merawat dan Mengatur Kebersihan"]
[null,"1. MUSTHOFA",null,null,"Madrasah"]
[]
[null,null,null,null,null,{"$f":"'LPJ1617'!R162","v":"Labruk Kidul, 17 Juli 2016"}]
[null,null,"Mengetahui,",null,null,"Kepala Madrasah"]
[]
[]
[null,null,"MOCH. QOYYUM,SH",null,null,"SAHRONI,S.Pd.I"]

{"sheet":"DTPERSON1617","index":9,"n_rows":72,"n_cols":9,"rows_kept":72,"cut":false,"hidden":false,"merged":[[2,0,2,1],[0,0,0,6],[44,2,44,4],[46,2,46,4],[48,2,48,4],[50,2,50,4],[52,2,52,4],[54,2,54,4],[56,2,56,4],[58,2,58,4],[69,2,69,4],[70,2,70,4],[71,2,71,4],[60,2,60,4],[62,2,62,4],[64,2,64,4],[66,2,66,4],[68,2,68,4]]}
["DATA PERSONAL",null,null,null,null,null,null,"2018/2019"]
[1,2,3,4,5,6,7,8,9]
[]
["No.","Nama","L/P","Tempat Lahir","Tanggal Lahir","Status","Jabatan","No. SK","KODE SK"]
[1,"M. Said","L","Lumajang","1966-06-23","Tenaga Pendidik","Guru","004","/MINI.L-Kid/ 30.02.02/SK/VII/2016"]
[2,"Sumarmi,S.Pd.I","P","Lumajang","1964-09-12","Tenaga Pendidik","Guru","005","/MINI.L-Kid/ 30.02.02/SK/VII/2016"]
[3,"Minuk Ika Wulandari,S.Pd,I","P","Lumajang","1979-04-14","Tenaga Pendidik","Guru","006","/MINI.L-Kid/ 30.02.02/SK/VII/2016"]
[4,"Chayul Mu'afa,S.Ag.","P","Lumajang","1977-04-15","Tenaga Pendidik","Guru","007","/MINI.L-Kid/ 30.02.02/SK/VII/2016"]
[5,"Khusnul Adibah,S.Pd.I","P","Lumajang","1968-10-03","Tenaga Pendidik","Guru","008","/MINI.L-Kid/ 30.02.02/SK/VII/2016"]
[6,"Muhammad Khoiri,S.Pd.I.","L","Lumajang","1978-05-03","Tenaga Pendidik","Guru","009","/MINI.L-Kid/ 30.02.02/SK/VII/2016"]
[7,"Yuliana,S.Pd.I","P","Lumajang","1986-10-24","Tenaga Pendidik","Guru","010","/MINI.L-Kid/ 30.02.02/SK/VII/2016"]
[8,"Ahmad Shodiq,S.H.","L","Lumajang","1977-05-15","Tenaga Pendidik","Guru","011","/MINI.L-Kid/ 30.02.02/SK/VII/2016"]
[9,"Chusni Kurniawan,S.Pd.","L","Lumajang","1987-03-09","Tenaga Pendidik","Guru","012","/MINI.L-Kid/ 30.02.02/SK/VII/2016"]
[10,"M. Zuhdi Agus Riyanto,S.Pd.","L","Jember","1975-08-23","Tenaga Pendidik","Guru","013","/MINI.L-Kid/ 30.02.02/SK/VII/2016"]
[11,"Liya Shobihatul Qudriyah,S.Pd","P","Lumajang","1990-04-25","Tenaga Pendidik","Guru","014","/MINI.L-Kid/ 30.02.02/SK/VII/2016"]
[12,"Siti Munfaridah,S.Pd","P","Lumajang","1974-09-20","Tenaga Pendidik","Guru","015","/MINI.L-Kid/ 30.02.02/SK/VII/2016"]
[13,"Nur Ratna Prihatiningsih, S.Pd","P","Lumajang","1987-09-09","Tenaga Pendidik","Guru","016","/MINI.L-Kid/ 30.02.02/SK/VII/2016"]
[14,"Nurul Hidayah, S.Pd.I, MA","P","Lumajang","1975-11-05","Tenaga Pendidik","Guru","017","/MINI.L-Kid/ 30.02.02/SK/VII/2016"]
[15,"Azan Tudhoni","L","Lumajang","1990-11-26","Tenaga Pendidik","Guru","018","/MINI.L-Kid/ 30.02.02/SK/VII/2016"]
[16,"Evi Nuning Faridah,S.Pd.I","P","Lumajang","1987-10-16","Tenaga Pendidik","Guru","019","/MINI.L-Kid/ 30.02.02/SK/VII/2016"]
[17,"Nurul Lathifah","P","Lumajang","1992-07-12","Tenaga Pendidik","Guru","020","/MINI.L-Kid/ 30.02.02/SK/VII/2016"]
[18,"Nurul 'Ain","P","Lumajang","1977-11-28","Tenaga Pendidik","Koordinator Tilawati","021","/MINI.L-Kid/ 30.02.02/SK/VII/2016"]
[19,"Uul Mas'ulah","P","Lumajang",null,"Tenaga Pendidik","Guru","022","/MINI.L-Kid/ 30.02.02/SK/VII/2016"]
[20,"Stephanie Ayu Sakethi","P","Lumajang","1991-03-10","Tenaga Kependidikan","Staff Tata Usaha","023","/MINI.L-Kid/ 30.02.02/SK/VII/2016"]
[21,"Solikhati","P","Lumajang","1973-09-27","Tenaga Kependidikan","Penjaga Kantin","024","/MINI.L-Kid/ 30.02.02/SK/VII/2016"]
[22,"Musthofa","L","Lumajang",null,"Tenaga Kependidikan","Penjaga Sekolah","025","/MINI.L-Kid/ 30.02.02/SK/VII/2016"]
[23,"Chusni Kurniawan,S.Pd.","L","Lumajang","1987-03-09","Tenaga Kependidikan","Kepala Tata Usaha","026","/MINI.L-Kid/ 30.02.02/SK/VII/2016"]
[24,"Khusnul Adibah,S.Pd.I","P","Lumajang","1968-10-03","Tenaga Kependidikan","PKM. Sarana Prasarana","027","/MINI.L-Kid/ 30.02.02/SK/VII/2016"]
[25,"Azan Tudhoni","L","Lumajang","1990-11-26","Tenaga Kependidikan","PKM. Kesiswaan","028","/MINI.L-Kid/ 30.02.02/SK/VII/2016"]
[26,"Nurul Hidayah, S.Pd.I, MA","P","Lumajang","1975-11-05","Tenaga Kependidikan","PKM. Keuangan","029","/MINI.L-Kid/ 30.02.02/SK/VII/2016"]
[27,"Ahmad Shodiq,S.H.","L","Lumajang","1977-05-15","Tenaga Kependidikan","PKM. Humas","030","/MINI.L-Kid/ 30.02.02/SK/VII/2016"]
[28,null,null,null,null,null,null,"031"]
[29,null,null,null,null,null,null,"032"]
[30,null,null,null,null,null,null,"033"]
[31,null,null,null,null,null,null,"034"]
[32,null,null,null,null,null,null,"035"]
[33,null,null,null,null,null,null,"036"]
[34,null,null,null,null,null,null,"037"]
[35,null,null,null,null,null,null,"038"]
[36,null,null,null,null,null,null,"039"]
[37,null,null,null,null,null,null,"040"]
[38,null,null,null,null,null,null,"041"]
[39,null,null,null,null,null,null,"042"]
[40,null,null,null,null,null,null,"043"]
["Tahun Pelajaran",null,"2016/2017"]
[]
["Nama Sekolah",null,"MI NURUL ISLAM LABRUK KIDUL"]
[]
["Nama KS",null,"SAHRONI,S.Pd.I"]
[]
["JABATAN YANG DI SK",null,"Kepala Tata Usaha",null,"No. SK"]
[]
[null,null,"Staff Tata Usaha"]
[]
[null,null,"PKM. Kurikulum"]
[]
[null,null,"Bendahara Madrasah"]
[]
[null,null,"PKM. Kesiswaan"]
[]
[null,null,"PKM. Sarana dan Prasarana"]
[]
[null,null,"PKM. Humas"]
[]
[null,null,"Guru Tetap Yayasan"]
[]
[null,null,"Koordinator Tilawati"]
[]
["tanggal SK",null,"2016-07-17"]
["TMT SK",null,"2016-07-17"]
["berlaku sd",null,"2017-07-16"]
["ditetapkan di",null,"Labruk Kidul"]

{"sheet":"DTPERSON1718","index":10,"n_rows":73,"n_cols":9,"rows_kept":73,"cut":false,"hidden":false,"merged":[[67,1,67,2],[68,7,68,8],[69,7,69,8],[52,2,52,4],[54,2,54,4],[56,2,56,4],[58,2,58,4],[60,2,60,4],[62,2,62,4],[64,2,64,4],[66,2,66,4],[50,2,50,4],[0,0,0,6],[2,0,2,1],[44,2,44,4],[46,2,46,4],[48,2,48,4]]}
["DATA PERSONAL",null,null,null,null,null,null,"2019/2020"]
[1,2,3,4,5,6,7,8,9]
[]
["No.","Nama","L/P","Tempat Lahir","Tanggal Lahir","Status","Jabatan","No. SK","KODE SK"]
[1,"M. Said","L","Lumajang","1966-06-23","Tenaga Pendidik","Guru","004","/MINI.L-Kid/ 30.02.02/SK/VII/2019"]
[2,"Sumarmi,S.Pd.I","P","Lumajang","1964-09-12","Tenaga Pendidik","Guru","005","/MINI.L-Kid/ 30.02.02/SK/VII/2019"]
[3,"Minuk Ika Wulandari,S.Pd,I","P","Lumajang","1979-04-14","Tenaga Pendidik","Guru","006","/MINI.L-Kid/ 30.02.02/SK/VII/2019"]
[4,"Chayul Mu'afa,S.Ag.","P","Lumajang","1977-04-15","Tenaga Pendidik","Guru","007","/MINI.L-Kid/ 30.02.02/SK/VII/2019"]
[5,"Khusnul Adibah,S.Pd.I","P","Lumajang","1968-10-03","Tenaga Pendidik","Guru","008","/MINI.L-Kid/ 30.02.02/SK/VII/2019"]
[6,"Muhammad Khoiri,S.Pd.I.","L","Lumajang","1978-05-03","Tenaga Pendidik","Guru","009","/MINI.L-Kid/ 30.02.02/SK/VII/2019"]
[7,"Yuliana,S.Pd.I","P","Lumajang","1986-10-24","Tenaga Pendidik","Guru","010","/MINI.L-Kid/ 30.02.02/SK/VII/2019"]
[8,"Ahmad Shodiq,S.H.","L","Lumajang","1977-05-15","Tenaga Pendidik","Guru","011","/MINI.L-Kid/ 30.02.02/SK/VII/2019"]
[9,"Chusni Kurniawan,S.Pd.","L","Lumajang","1987-03-09","Tenaga Pendidik","Guru","012","/MINI.L-Kid/ 30.02.02/SK/VII/2019"]
[10,"M. Zuhdi Agus Riyanto,S.Pd.","L","Jember","1975-08-23","Tenaga Pendidik","Guru","013","/MINI.L-Kid/ 30.02.02/SK/VII/2019"]
[11,"Liya Shobihatul Qudriyah,S.Pd","P","Lumajang","1990-04-25","Tenaga Pendidik","Guru","014","/MINI.L-Kid/ 30.02.02/SK/VII/2019"]
[12,"Siti Munfaridah,S.Pd","P","Lumajang","1974-09-20","Tenaga Pendidik","Guru","015","/MINI.L-Kid/ 30.02.02/SK/VII/2019"]
[13,"Nur Ratna Prihatiningsih, S.Pd","P","Lumajang","1987-09-09","Tenaga Pendidik","Guru","016","/MINI.L-Kid/ 30.02.02/SK/VII/2019"]
[14,"Nurul Hidayah, S.Pd.I, MA","P","Lumajang","1975-11-05","Tenaga Pendidik","Guru","017","/MINI.L-Kid/ 30.02.02/SK/VII/2019"]
[15,"Azan Tudhoni","L","Lumajang","1990-11-26","Tenaga Pendidik","Guru","018","/MINI.L-Kid/ 30.02.02/SK/VII/2019"]
[16,"Evi Nuning Faridah,S.Pd.I","P","Lumajang","1987-10-16","Tenaga Pendidik","Guru","019","/MINI.L-Kid/ 30.02.02/SK/VII/2019"]
[17,"Nurul Lathifah","P","Lumajang","1992-07-12","Tenaga Pendidik","Guru","020","/MINI.L-Kid/ 30.02.02/SK/VII/2019"]
[18,"Nurul 'Ain","P","Lumajang","1977-11-28","Tenaga Pendidik","Koordinator Tilawati","021","/MINI.L-Kid/ 30.02.02/SK/VII/2019"]
[19,"Uul Mas'ulah","P","Lumajang",null,"Tenaga Pendidik","Guru","022","/MINI.L-Kid/ 30.02.02/SK/VII/2019"]
[20,"Stephanie Ayu Sakethi","P","Lumajang","1991-03-10","Tenaga Kependidikan","Staff Tata Usaha","023","/MINI.L-Kid/ 30.02.02/SK/VII/2019"]
[21,"Solikhati","P","Lumajang","1973-09-27","Tenaga Kependidikan","Penjaga Kantin","024","/MINI.L-Kid/ 30.02.02/SK/VII/2019"]
[22,"Musthofa","L","Lumajang",null,"Tenaga Kependidikan","Penjaga Sekolah","025","/MINI.L-Kid/ 30.02.02/SK/VII/2019"]
[23,"Chusni Kurniawan,S.Pd.","L","Lumajang","1987-03-09","Tenaga Kependidikan","Kepala Tata Usaha","026","/MINI.L-Kid/ 30.02.02/SK/VII/2019"]
[24,"Khusnul Adibah,S.Pd.I","P","Lumajang","1968-10-03","Tenaga Kependidikan","PKM. Sarana Prasarana","027","/MINI.L-Kid/ 30.02.02/SK/VII/2019"]
[25,"Azan Tudhoni","L","Lumajang","1990-11-26","Tenaga Kependidikan","PKM. Kesiswaan","028","/MINI.L-Kid/ 30.02.02/SK/VII/2019"]
[26,"Nurul Hidayah, S.Pd.I, MA","P","Lumajang","1975-11-05","Tenaga Kependidikan","Bendahara BOS","029","/MINI.L-Kid/ 30.02.02/SK/VII/2019"]
[27,"Ahmad Shodiq,S.H.","L","Lumajang","1977-05-15","Tenaga Kependidikan","PKM. Humas","030","/MINI.L-Kid/ 30.02.02/SK/VII/2019"]
[28,null,null,null,null,null,null,"031"]
[29,null,null,null,null,null,null,"032"]
[30,null,null,null,null,null,null,"033"]
[31,null,null,null,null,null,null,"034"]
[32,null,null,null,null,null,null,"035"]
[33,null,null,null,null,null,null,"036"]
[34,null,null,null,null,null,null,"037"]
[35,null,null,null,null,null,null,"038"]
[36,null,null,null,null,null,null,"039"]
[37,null,null,null,null,null,null,"040"]
[38,null,null,null,null,null,null,"041"]
[39,null,null,null,null,null,null,"042"]
[40,null,null,null,null,null,null,"043"]
["Tahun Pelajaran",null,"2019/2020"]
[]
["Nama Sekolah",null,"MI NURUL ISLAM LABRUK KIDUL"]
[]
["Nama KS",null,"SAHRONI,S.Pd.I"]
[]
["JABATAN YANG DI SK",null,"Kepala Tata Usaha",null,"No. SK"]
[]
[null,null,"Staff Tata Usaha"]
[]
[null,null,"PKM. Kurikulum"]
[]
[null,null,"Bendahara Madrasah"]
[]
[null,null,"PKM. Kesiswaan"]
[]
[null,null,"PKM. Sarana dan Prasarana"]
[]
[null,null,"PKM. Humas"]
[]
[null,null,"Guru Tetap Yayasan"]
[]
[null,null,"Koordinator Tilawati"]
[null,"SEMESTER",null,"tanggal SK","TMT SK","berlaku sd","ditetapkan di","NOMOR SK"]
[null,null,1,"2019-07-13","2018-07-17","2019-07-16","Labruk Kidul","001/MINI.L-Kid/30.02.02/SK.S.1-0/VII/2019"]
[null,null,2,"2019-01-01",{"$f":"D70","v":"2019-01-01"},"2019-07-16","Labruk Kidul","008/MINI.L-Kid/30.02.02/SK.S.1-0/I/2020"]
[]
[]
[null,null,null,"smt1",null,"smt2"]

{"sheet":"SK1718","index":11,"n_rows":49,"n_cols":8,"rows_kept":49,"cut":false,"hidden":false,"merged":[[8,7,9,7],[14,0,14,5],[17,3,17,5],[18,3,18,5],[23,3,23,5],[37,3,37,5],[30,0,30,5],[8,0,8,5],[9,0,9,5],[11,0,11,5],[12,0,12,5],[13,0,13,5]]}
[]
[]
[]
[]
[null,null,null,null,null,null,null,"SEMESTER"]
[null,null,null,null,null,null,null,1]
[]
[null,null,null,null,null,null,null,26]
["SURAT KEPUTUSAN KEPALA MI.NURUL ISLAM LABRUK KIDUL",null,null,null,null,null,null,"Guru Nomor"]
[{"$f":"\"Nomor \"&\": \"&VLOOKUP(H6,DTPERSON1718!C69:I70,6)","v":"Nomor : 001/MINI.L-Kid/30.02.02/SK.S.1-0/VII/2019"}]
[]
["TENTANG"]
[{"$f":"\"PENGANGKATAN \"&UPPER(VLOOKUP('SK1718'!H8,DTPERSON1718!A5:I44,6))","v":"PENGANGKATAN TENAGA KEPENDIDIKAN"}]
["DI LINGKUNGAN LEMBAGA PENDIDIKAN MA’ARIF NU"]
[{"$f":"\"Tahun Pelajaran \"&DTPERSON1718!C45","v":"Tahun Pelajaran 2019/2020"}]
[]
[]
["Menimbang",":","1.",{"$f":"\"Bahwa guna melancarkan pelaksanaan \"&IF(H9=\"Guru\",RUMUS!I3,IF(H9=\"Kepala Tata Usaha\",RUMUS!I4,IF(H9=\"Staff Tata Usaha\",RUMUS!I4,IF(H9=\"PKM. Sarana Prasarana\",RUMUS!I6,IF(H9=\"PKM. Keuangan\",RUMUS!I8,IF(H9=\"PKM. Kesiswaan\",RUMUS!I7,IF(H9=\"PKM. Humas\",RUMUS!I9,IF(H9=\"Koordinator Tilawati\",RUMUS!I10,\"\"))))))))&\" \"&H9&\" pada \"&UPPER(DATASK!C3)","v":"Bahwa guna melancarkan pelaksanaan  Guru Nomor pada MI NURUL ISLAM LABRUK KIDUL"}]
[null,null,"2.",{"$f":"\"Bahwa untuk menjamin terpeliharanya Tata Tertib serta kelancaran tugas -  tugas pokok \"&(VLOOKUP('SK1718'!H8,DTPERSON1718!A5:I44,7))&\" perlu diatur dalam Surat Keputusan Kepala Madrasah.\"","v":"Bahwa untuk menjamin terpeliharanya Tata Tertib serta kelancaran tugas -  tugas pokok Bendahara BOS perlu diatur dalam Surat Keputusan Kepala Madrasah."}]
[]
["Mengingat",":","1.","Undang – undang nomor 20 Tahun 2003, tentang Sistem Pendidikan Nasional"]
[null,null,"2.","Peraturan Pemerintah RI Nomor 29 Tahun 1990."]
[null,null,"3.","Keputusan Mentri Pendayagunaan Aparatur Negara Nomor Tahun 1993"]
[null,null,"4.","Surat Keputusan bersama Mentri Pendidikan dan Kebudayaan dan Kepala  Badan Administrasi Kepegawaian Negara Nomor : 0433/P/1993 dan Nomor :  25/P/1993."]
[null,null,"5.","Keputusan Mentri Pendidikan Nasional Nomor : 084/U/2004."]
[null,null,null,"  "]
[]
[]
["Memperhatikan ",":",{"$f":"\"Hasil rapat Dewan Guru \"&PROPER(DATASK!C3)","v":"Hasil rapat Dewan Guru Mi Nurul Islam Labruk Kidul"}]
[]
["MEMUTUSKAN"]
["Menetapkan",":","1.","Mengangkat Saudara :"]
[null,null,null,"      Nama",{"$f":"\": \"&VLOOKUP('SK1718'!H8,DTPERSON1718!A5:I44,2)","v":": Nurul Hidayah, S.Pd.I, MA"}]
[null,null,null,"      Jenis Kelamin",{"$f":"\": \"&IF(VLOOKUP('SK1718'!H8,DTPERSON1718!A5:I44,3)=\"L\",\"Laki-laki\",\"Perempuan\")","v":": Perempuan"}]
[null,null,null,"      Tempat/tanggal lahir",{"$f":"\": \"&VLOOKUP('SK1718'!H8,DTPERSON1718!A5:I44,4)&\", \"&TEXT(VLOOKUP('SK1718'!H8,DTPERSON1718!A5:I44,5),\"dd mmmm yyyy\")","v":": Lumajang, 05 November 1975"}]
[null,null,null,"      Sebagai ",{"$f":"\": \"&VLOOKUP('SK1718'!H8,DTPERSON1718!A5:I44,7)","v":": Bendahara BOS"}]
[null,null,null,"      Tanggal Mulai tugas",{"$f":"\": \"&TEXT(DTPERSON1718!E69,\"dd mmmm yyyy\")","v":": 17 Juli 2018"}]
[null,null,"2.",{"$f":"\"mengamanatkan kepada yang bersangkutan tersebut diatas untuk  melaksanakan tugasnya dengan sebaik baiknya dan bertanggung jawab berdasarkan pedoman dan ketentuan yang berlaku pada \"&DTPERSON1718!C47","v":"mengamanatkan kepada yang bersangkutan tersebut diatas untuk  melaksanakan tugasnya dengan sebaik baiknya dan bertanggung jawab berdasarkan pedoman dan ketentuan yang berlaku pada MI NURUL ISLAM LABRUK KIDUL"}]
[null,null,"3.",{"$f":"\"Surat Keputusan ( SK ) ini berlaku sampai dengan tanggal \"&TEXT(VLOOKUP(H6,DTPERSON1718!C69:I70,4),\"dd mmmm yyyy\")","v":"Surat Keputusan ( SK ) ini berlaku sampai dengan tanggal 16 Juli 2019"}]
[]
[null,null,null,null,"Ditetapkan di ",{"$f":"\": \"&DTPERSON1718!G69","v":": Labruk Kidul"}]
["                                        ",null,null,null,"Pada Tanggal",{"$f":"\": \"&TEXT(VLOOKUP(H6,DTPERSON1718!C69:I70,4),\"dd mmmm yyyy\")","v":": 16 Juli 2019"}]
["  ",null,null,null,{"$f":"UPPER(\"Kepala Madrasah\")","v":"KEPALA MADRASAH"}]
[null,null,null,null,{"$f":"UPPER(DATASK!C3)","v":"MI NURUL ISLAM LABRUK KIDUL"}]
[]
[]
[]
[]
[null,null,null,null,{"$f":"DATASK!C5","v":"SAHRONI,S.Pd.I"}]

{"sheet":"LPT1718","index":12,"n_rows":55,"n_cols":6,"rows_kept":55,"cut":false,"hidden":false,"merged":[[35,5,35,6],[16,5,16,6],[18,5,29,6],[30,5,30,6],[31,5,31,6],[32,5,32,6],[33,5,33,6],[9,5,15,6],[4,0,5,0],[4,1,5,2],[4,3,5,4],[4,5,5,6],[6,5,7,6]]}
["Lampiran 1 ",null,{"$f":"'LPJ1718'!C1","v":": SK Kepala MIS. Nurul Islam Labruk Kidul"}]
["Nomor",null,{"$f":"'LPJ1718'!C2","v":": 001/MINI.L-Kid/30.02.02/SK.S.1-0/VII/2019"}]
["Tanggal",null,{"$f":"'LPJ1718'!C3","v":": 13 Juli 2019"}]
[]
["NO","N A M A",null,"JENIS TUGAS",null,"KETERANGAN"]
[]
["01","KEPALA MADRASAH"]
[null,"1. SAHRONI,S.Pd.I",null,"Ø","Kepala Madrasah"]
["02","PEMBANTU KEPALA MADRASAH"]
[null,"2.1.AZAN TUDHONI, S.Pd",null,"Ø","PKM Kesiswaan","Membantu Kepala Madrasah"]
[null,"2.2. NURUL HIDAYAH, S.Pd.I. MA",null,"Ø","PKM Tenaga Kependidikan"]
[null,"2.3. NUR RATNA PRIHATININGSIH, S.Pd",null,"Ø","PKM Kurikulum"]
[null,"2.4. KHUSNUL ADIBAH, S.Pd.I",null,"Ø","PKM Sarana Prasarana"]
[null,"2.5. AHMAD SHODIQ, SH",null,"Ø","PKM. Humas"]
["03","BENDAHARA"]
[null,"1. NURUL HIDAYAH, S.Pd.I,MA",null,"Ø","Bendahara Umum"]
["04","WALI KELAS"]
[null,"1. KHUSNUL ADIBAH, S.Pd.I",null,"Ø","Wali Kelas I. A"]
[null,"2. EVY NUNING FARIDAH, S.Pd.I",null,"Ø","Wali Kelas I. B","Membantu PKM. Kurikulum"]
[null,"3. SITI MUNFARIDAH, S.Pd",null,"Ø","Wali Kelas I. C"]
[null,"4. MINUK IKA WULANDARI, S.Pd.I",null,"Ø","Wali Kelas II A"]
[null,"5. NURUL LATHIFAH, S.Pd.I",null,"Ø","Wali Kelas II B"]
[null,"6. MUHAMMAD KHOIRI, S.Pd",null,"Ø","Wali Kelas III A"]
[null,"7. SUMARMI, S,Pd.I",null,"Ø","Wali Kelas III B"]
[null,"8. CHUSNI KURNIAWAN, S.Pd",null,"Ø","Wali Kelas IV. A"]
[null,"9. LIYA SHOBIHATUL QUDRIYAH, S.Pd",null,"Ø","Wali Kelas IV. B"]
[null,"10. AHMAD SHODIQ, SH",null,"Ø","Wali Kelas V. A"]
[null,"11. NUR RATNA PRIHATININGSIH, S.Pd",null,"Ø","Wali Kelas V. B"]
[null,"12. CHAYUL MU'AFA, S.Ag",null,"Ø","Wali Kelas VI A"]
[null,"13. NURUL HIDAYAH, S.Pd.I MA",null,"Ø","Wali Kelas VI B"]
["05","OPERATOR",null,null,null,"Membantu :"]
[null,"1. CHUSNI KURNIAWAN,S.Pd",null,"Ø","mengelola administrasi berbasis IT","- Kepala Madrasah dan TU"]
["06","KEPALA TATA USAHA",null,"Ø","Mengelola, Menyiapkan dan","Membantu :"]
[null,"1. STEPHANIE AYU SAKETHI",null,null,"membuat data/Administrasi","- Kepala Madrasah"]
["07","KOPERASI PERALATAN SEKOLAH",null,"Ø","Mengelola Koperasi Serta","- Wali Kelas"]
[null,"1. ROFIATUL MAZIDAH",null,null,"menyediakan kebutuhan murid","Membantu WK. Kesiswaan"]
["08","KOPERASI KANTIN"]
[null,"1. SHOLIKHATI",null,"Ø","Mengelola Kantin"]
[null,"2. YULIANA, S. Pd I"]
["09","TABUNGAN"]
[null,"1. STEPHANIE AYU SAKETHI"]
["10","PERPUSTAKAAN",null,"Ø","Mengelola Perpustakaan Madrasah"]
[null,"1. NURUL LATHIFAH, S.Pd.I"]
["11","UKS",null,"Ø","Mengelola UKS Madrasah"]
[null,"1. MUH. ZUHDI AGUSRIYANTO, S.Pd"]
[12,"KEAMANAN/SECURITY",null,"Ø","Keamanan Madrasah"]
[null,"1. M. SAIKHU"]
[13,"WALKER/TUKANG KEBUN",null,"Ø","Merawat dan Mengatur Kebersihan"]
[null,"1. MUSTHOFA",null,null,"Madrasah"]
[]
[null,null,null,null,null,{"$f":"\"Labruk Kidul, \"&TEXT(DTPERSON1718!D69,\"dd mmmm yyyy\")","v":"Labruk Kidul, 13 Juli 2019"}]
[null,null,"Mengetahui,",null,null,"Kepala Madrasah"]
[]
[]
[null,null,"MOCH. QOYYUM,SH",null,null,"SAHRONI,S.Pd.I"]

{"sheet":"LPJ1718","index":13,"n_rows":166,"n_cols":22,"rows_kept":166,"cut":false,"hidden":false,"merged":[[1,21,2,22],[4,21,5,22],[157,0,157,4],[151,0,152,0],[151,1,152,2],[151,3,152,3],[151,20,152,20],[153,0,154,0],[153,1,154,2],[153,3,154,3],[153,20,154,20],[148,3,150,3],[148,20,150,20],[129,0,138,0],[129,3,138,3],[129,20,138,20],[139,20,147,20],[143,1,143,2],[144,1,144,2],[109,0,118,0],[109,3,118,3],[109,20,118,20],[113,1,113,2],[119,0,128,0],[119,3,128,3],[119,20,128,20],[124,1,124,2],[132,1,132,2],[133,1,133,2],[134,1,134,2],[139,0,147,0],[139,3,147,3],[89,0,98,0],[89,20,98,20],[93,1,93,2],[99,0,108,0],[99,3,108,3],[99,20,108,20],[103,1,103,2],[104,1,104,2],[67,0,77,0],[67,3,77,3],[67,20,77,20],[72,1,72,2],[73,1,73,2],[78,0,88,0],[78,20,88,20],[83,1,83,2],[83,3,87,3],[84,1,84,2],[45,0,55,0],[45,3,55,3],[45,20,55,20],[50,1,50,2],[51,1,51,2],[56,0,66,0],[56,3,66,3],[56,20,66,20],[61,1,61,2],[62,1,62,2],[34,0,44,0],[34,3,44,3],[34,20,44,20],[9,1,9,2],[10,0,11,0],[10,1,11,2],[10,3,11,3],[10,20,11,20],[12,0,22,0],[12,3,22,3],[12,20,22,20],[23,0,33,0],[23,3,33,3],[23,20,33,20],[28,1,28,2],[29,1,29,2],[4,0,4,20],[5,0,5,20],[6,0,6,20],[7,0,8,0],[7,1,8,2],[7,4,8,4],[7,5,7,17],[7,18,8,18],[7,19,8,19],[7,20,8,20]]}
["Lampiran 2",null,{"$f":"[1]Tugas!C1","v":": SK Kepala MIS. Nurul Islam Labruk Kidul"}]
["Nomor",null,{"$f":"\": \"&VLOOKUP(V5,DTPERSON1718!C69:I70,6)","v":": 001/MINI.L-Kid/30.02.02/SK.S.1-0/VII/2019"},null,null,null,null,null,null,null,null,null,null,null,null,null,null,null,null,null,null,"SEMESTER"]
["Tanggal",null,{"$f":"\": \"&TEXT(VLOOKUP(V5,DTPERSON1718!C69:I70,2),\"dd mmmm yyyy\")","v":": 13 Juli 2019"}]
[]
["DATA TUGAS MENGAJAR DAN JUMLAH JAM MENGAJAR",null,null,null,null,null,null,null,null,null,null,null,null,null,null,null,null,null,null,null,null,{"$f":"'SK1718'!H6","v":1}]
["MI. MA'ARIF NU NURUL ISLAM LABRUK KIDUL - SUMBERSUKO"]
["TAHUN PELAJARAN 2017/2018"]
["NO","NAMA GURU",null,"KD","TUGAS MENGAJAR","Jumlah Jam Dalam Kelas",null,null,null,null,null,null,null,null,null,null,null,null,"KS","JML JAM PER-BDG STUDI","JML JAM TOTAL"]
[null,null,null,"GURU",null,"1a","1b","1c","2a","2b","3a","3b","4a","4b","5a","5b","6a","6b"]
[1,"Sahroni, S.Pd.I",null,null,"Aswaja",null,null,null,null,null,null,null,null,null,null,null,2,2,18,{"$f":"SUM(F10:S10)","v":22},{"$f":"SUM(T10:T10)","v":22}]
[2,"M. Said",null,null,"B. Arab",null,null,null,null,null,null,null,2,2,2,2,2,2,null,12,{"$f":"SUM(T11:T12)","v":24}]
[null,null,null,null,"Nahwu/Shorof",null,null,null,null,null,null,null,2,2,2,2,2,2,null,12]
[3,null,null,null,"Matematika",4,null,null,null,null,null,null,null,null,null,null,null,null,null,4,{"$f":"SUM(F13:R23)","v":30}]
[null,null,null,null,"IPA/Sains",3,null,null,null,null,null,null,null,null,null,null,null,null,null,3]
[null,null,null,null,"B. Indonesia",4,null,null,null,null,null,null,null,null,null,null,null,null,null,4]
[null,null,null,null,"IPS",3,null,null,null,null,null,null,null,null,null,null,null,null,null,3]
[null,null,null,null,"PPKn",2,null,null,null,null,null,null,null,null,null,null,null,null,null,2]
[null,"Khusnul Adibah, S.Pd.I",null,null,"Kertakes",3,null,null,null,null,null,null,null,null,null,null,null,null,null,3]
[null,"(WALI KELAS I A)",null,null,"Fiqih",2,null,null,null,null,null,null,null,null,null,null,null,null,null,2]
[null,null,null,null,"AlQuran Hadits",2,null,null,null,null,null,null,null,null,null,null,null,null,null,2]
[null,null,null,null,"Aqidah Akhlaq",2,null,null,null,null,null,null,null,null,null,null,null,null,null,2]
[null,null,null,null,"Bhs Inggris",1,null,null,null,null,null,null,null,null,null,null,null,null,null,1]
[null,null,null,null,"Penjaskes",4,null,null,null,null,null,null,null,null,null,null,null,null,null,4]
[4,null,null,null,"Matematika",null,4,null,null,null,null,null,null,null,null,null,null,null,null,{"$f":"SUM(G24:S24)","v":4},{"$f":"SUM(T24:T34)","v":30}]
[null,null,null,null,"IPA/Sains",null,3,null,null,null,null,null,null,null,null,null,null,null,null,3]
[null,null,null,null,"B. Indonesia",null,4,null,null,null,null,null,null,null,null,null,null,null,null,4]
[null,null,null,null,"IPS",null,3,null,null,null,null,null,null,null,null,null,null,null,null,3]
[null,null,null,null,"PPKn",null,2,null,null,null,null,null,null,null,null,null,null,null,null,2]
[null,"Evi Nuning Faridah, S.Pd.I",null,null,"Kertakes",null,3,null,null,null,null,null,null,null,null,null,null,null,null,3]
[null,"(WALI KELAS I B)",null,null,"Fiqih",null,2,null,null,null,null,null,null,null,null,null,null,null,null,2]
[null,null,null,null,"AlQuran Hadits",null,2,null,null,null,null,null,null,null,null,null,null,null,null,2]
[null,null,null,null,"Aqidah Akhlaq",null,2,null,null,null,null,null,null,null,null,null,null,null,null,2]
[null,null,null,null,"Bhs Inggris",null,1,null,null,null,null,null,null,null,null,null,null,null,null,1]
[null,null,null,null,"Penjaskes",null,4,null,null,null,null,null,null,null,null,null,null,null,null,4]
[5,null,null,null,"Matematika",null,null,4,null,null,null,null,null,null,null,null,null,null,null,4,30]
[null,null,null,null,"IPA/Sains",null,null,3,null,null,null,null,null,null,null,null,null,null,null,3]
[null,null,null,null,"B. Indonesia",null,null,4,null,null,null,null,null,null,null,null,null,null,null,4]
[null,null,null,null,"IPS",null,null,3,null,null,null,null,null,null,null,null,null,null,null,3]
[null,null,null,null,"PPKn",null,null,2,null,null,null,null,null,null,null,null,null,null,null,2]
[null,"Siti Munfaridah,S.Pd",null,null,"Kertakes",null,null,3,null,null,null,null,null,null,null,null,null,null,null,3]
[null,"(WALI KELAS I C)",null,null,"Fiqih",null,null,2,null,null,null,null,null,null,null,null,null,null,null,2]
[null,null,null,null,"AlQuran Hadits",null,null,2,null,null,null,null,null,null,null,null,null,null,null,2]
[null,null,null,null,"Aqidah Akhlaq",null,null,2,null,null,null,null,null,null,null,null,null,null,null,2]
[null,null,null,null,"Bhs Inggris",null,null,1,null,null,null,null,null,null,null,null,null,null,null,1]
[null,null,null,null,"Penjaskes",null,null,4,null,null,null,null,null,null,null,null,null,null,null,4]
[6,null,null,null,"Matematika",null,null,null,4,null,null,null,null,null,null,null,null,null,null,{"$f":"SUM(F46:S46)","v":4},{"$f":"SUM(T46:T56)","v":30}]
[null,null,null,null,"IPA/Sains",null,null,null,3,null,null,null,null,null,null,null,null,null,null,3]
[null,null,null,null,"B. Indonesia",null,null,null,4,null,null,null,null,null,null,null,null,null,null,4]
[null,null,null,null,"IPS",null,null,null,3,null,null,null,null,null,null,null,null,null,null,3]
[null,null,null,null,"PPKn",null,null,null,2,null,null,null,null,null,null,null,null,null,null,2]
[null,"Minuk Ika Wulandari, S.Pd.I",null,null,"Kertakes",null,null,null,3,null,null,null,null,null,null,null,null,null,null,3]
[null,"(WALI KELAS II A)",null,null,"Fiqih",null,null,null,2,null,null,null,null,null,null,null,null,null,null,2]
[null,null,null,null,"AlQuran Hadits",null,null,null,2,null,null,null,null,null,null,null,null,null,null,2]
[null,null,null,null,"Aqidah Akhlaq",null,null,null,2,null,null,null,null,null,null,null,null,null,null,2]
[null,null,null,null,"Bhs Inggris",null,null,null,1,null,null,null,null,null,null,null,null,null,null,1]
[null,null,null,null,"Penjaskes",null,null,null,4,null,null,null,null,null,null,null,null,null,null,4]
[7,null,null,null,"Matematika",null,null,null,null,4,null,null,null,null,null,null,null,null,null,4,{"$f":"SUM(T57:T67)","v":30}]
[null,null,null,null,"IPA/Sains",null,null,null,null,3,null,null,null,null,null,null,null,null,null,3]
[null,null,null,null,"B. Indonesia",null,null,null,null,4,null,null,null,null,null,null,null,null,null,4]
[null,null,null,null,"IPS",null,null,null,null,3,null,null,null,null,null,null,null,null,null,3]
[null,null,null,null,"PPKn",null,null,null,null,2,null,null,null,null,null,null,null,null,null,2]
[null,"Nurul Lathifah,S.Pd.I",null,null,"Kertakes",null,null,null,null,3,null,null,null,null,null,null,null,null,null,3]
[null,"(WALI KELAS II B)",null,null,"Fiqih",null,null,null,null,2,null,null,null,null,null,null,null,null,null,2]
[null,null,null,null,"AlQuran Hadits",null,null,null,null,2,null,null,null,null,null,null,null,null,null,2]
[null,null,null,null,"Aqidah Akhlaq",null,null,null,null,2,null,null,null,null,null,null,null,null,null,2]
[null,null,null,null,"Bhs Inggris",null,null,null,null,1,null,null,null,null,null,null,null,null,null,1]
[null,null,null,null,"Penjaskes",null,null,null,null,4,null,null,null,null,null,null,null,null,null,4]
[8,null,null,null,"Matematika",null,null,null,null,null,5,null,null,null,null,null,null,null,null,5,{"$f":"SUM(T68:T78)","v":31}]
[null,null,null,null,"IPA/Sains",null,null,null,null,null,4,null,null,null,null,null,null,null,null,4]
[null,null,null,null,"B. Indonesia",null,null,null,null,null,4,null,null,null,null,null,null,null,null,4]
[null,null,null,null,"IPS",null,null,null,null,null,3,null,null,null,null,null,null,null,null,3]
[null,null,null,null,"PPKn",null,null,null,null,null,2,null,null,null,null,null,null,null,null,2]
[null,"Muhammad Khoiri,S.Pd.I",null,null,"Bhs Daerah",null,null,null,null,null,2,null,null,null,null,null,null,null,null,2]
[null,"(WALI KELAS III A)",null,null,"Fiqih",null,null,null,null,null,2,null,null,null,null,null,null,null,null,2]
[null,null,null,null,"AlQuran Hadits",null,null,null,null,null,2,null,null,null,null,null,null,null,null,2]
[null,null,null,null,"Aqidah Akhlaq",null,null,null,null,null,2,null,null,null,null,null,null,null,null,2]
[null,null,null,null,"KTK",null,null,null,null,null,3,null,null,null,null,null,null,null,null,3]
[null,null,null,null,"Bhs Inggris",null,null,null,null,null,2,null,null,null,null,null,null,null,null,2]
[9,null,null,null,"Matematika",null,null,null,null,null,null,5,null,null,null,null,null,null,null,5,{"$f":"SUM(T79:T89)","v":31}]
[null,null,null,null,"IPA/Sains",null,null,null,null,null,null,4,null,null,null,null,null,null,null,4]
[null,null,null,null,"B. Indonesia",null,null,null,null,null,null,4,null,null,null,null,null,null,null,4]
[null,null,null,null,"IPS",null,null,null,null,null,null,3,null,null,null,null,null,null,null,3]
[null,null,null,null,"PPKn",null,null,null,null,null,null,2,null,null,null,null,null,null,null,2]
[null,"Sumarmi,S.Pd.I",null,null,"Bhs Daerah",null,null,null,null,null,null,2,null,null,null,null,null,null,null,2]
[null,"(WALI KELAS III B)",null,null,"Fiqih",null,null,null,null,null,null,2,null,null,null,null,null,null,null,2]
[null,null,null,null,"AlQuran Hadits",null,null,null,null,null,null,2,null,null,null,null,null,null,null,2]
[null,null,null,null,"Aqidah Akhlaq",null,null,null,null,null,null,2,null,null,null,null,null,null,null,2]
[null,null,null,null,"KTK",null,null,null,null,null,null,3,null,null,null,null,null,null,null,3]
[null,null,null,null,"Bhs Inggris",null,null,null,null,null,null,2,null,null,null,null,null,null,null,2]
[10,null,null,null,"MTK",null,null,null,null,null,null,null,5,null,null,null,null,null,null,5,{"$f":"SUM(M90:M99)","v":29}]
[null,null,null,null,"IPA/Sains",null,null,null,null,null,null,null,4,null,null,null,null,null,null,4]
[null,null,null,null,"B. Indonesia",null,null,null,null,null,null,null,5,null,null,null,null,null,null,5]
[null,"Chusni Kurniawan, S.Pd",null,null,"IPS",null,null,null,null,null,null,null,3,null,null,null,null,null,null,3]
[null,"(WALI KELAS IV A)",null,null,"PPKn",null,null,null,null,null,null,null,2,null,null,null,null,null,null,2]
[null,null,null,null,"Kertakes",null,null,null,null,null,null,null,2,null,null,null,null,null,null,2]
[null,null,null,null,"Fiqih",null,null,null,null,null,null,null,2,null,null,null,null,null,null,2]
[null,null,null,null,"AlQuran Hadits",null,null,null,null,null,null,null,2,null,null,null,null,null,null,2]
[null,null,null,null,"Bhs Inggris",null,null,null,null,null,null,null,2,null,null,null,null,null,null,2]
[null,null,null,null,"Aswaja",null,null,null,null,null,null,null,2,null,null,null,null,null,null,2]
[11,null,null,null,"MTK",null,null,null,null,null,null,null,null,5,null,null,null,null,null,5,{"$f":"SUM(T100:T109)","v":29}]
[null,null,null,null,"IPA/Sains",null,null,null,null,null,null,null,null,4,null,null,null,null,null,4]
[null,null,null,null,"B. Indonesia",null,null,null,null,null,null,null,null,5,null,null,null,null,null,5]
[null,null,null,null,"IPS",null,null,null,null,null,null,null,null,3,null,null,null,null,null,3]
[null,"LIYA SHOBIHATUL Q,S.Pd",null,null,"PPKn",null,null,null,null,null,null,null,null,2,null,null,null,null,null,2]
[null,"(WALI KELAS VI B)",null,null,"Kertakes",null,null,null,null,null,null,null,null,2,null,null,null,null,null,2]
[null,null,null,null,"Fiqih",null,null,null,null,null,null,null,null,2,null,null,null,null,null,2]
[null,null,null,null,"AlQuran Hadits",null,null,null,null,null,null,null,null,2,null,null,null,null,null,2]
[null,null,null,null,"Bhs Inggris",null,null,null,null,null,null,null,null,2,null,null,null,null,null,2]
[null,null,null,null,"Aswaja",null,null,null,null,null,null,null,null,2,null,null,null,null,null,2]
[12,null,null,null,"Matematika",null,null,null,null,null,null,null,null,null,5,null,null,null,null,{"$f":"SUM(F110:S110)","v":5},{"$f":"SUM(T110:T119)","v":29}]
[null,null,null,null,"IPA/Sains",null,null,null,null,null,null,null,null,null,4,null,null,null,null,4]
[null,null,null,null,"B. Indonesia",null,null,null,null,null,null,null,null,null,5,null,null,null,null,5]
[null,null,null,null,"IPS",null,null,null,null,null,null,null,null,null,3,null,null,null,null,3]
[null,"Ahmad Shodiq,SH",null,null,"PPKn",null,null,null,null,null,null,null,null,null,2,null,null,null,null,2]
[null,"(WALI KELAS V A)",null,null,"Kertakes",null,null,null,null,null,null,null,null,null,2,null,null,null,null,2]
[null,null,null,null,"Fiqih",null,null,null,null,null,null,null,null,null,2,null,null,null,null,2]
[null,null,null,null,"AlQuran Hadits",null,null,null,null,null,null,null,null,null,2,null,null,null,null,2]
[null,null,null,null,"Bhs Inggris",null,null,null,null,null,null,null,null,null,2,null,null,null,null,2]
[null,null,null,null,"Aswaja",null,null,null,null,null,null,null,null,null,2,null,null,null,null,2]
[13,null,null,null,"Matematika",null,null,null,null,null,null,null,null,null,null,5,null,null,null,5,{"$f":"SUM(T120:T129)","v":29}]
[null,null,null,null,"IPA/Sains",null,null,null,null,null,null,null,null,null,null,4,null,null,null,4]
[null,null,null,null,"B. Indonesia",null,null,null,null,null,null,null,null,null,null,5,null,null,null,5]
[null,null,null,null,"IPS",null,null,null,null,null,null,null,null,null,null,3,null,null,null,3]
[null,"NUR RATNA P, S.Pd",null,null,"PPKn",null,null,null,null,null,null,null,null,null,null,2,null,null,null,2]
[null,"(WALI KELAS V B)",null,null,"Kertakes",null,null,null,null,null,null,null,null,null,null,2,null,null,null,2]
[null,null,null,null,"Fiqih",null,null,null,null,null,null,null,null,null,null,2,null,null,null,2]
[null,null,null,null,"AlQuran Hadits",null,null,null,null,null,null,null,null,null,null,2,null,null,null,2]
[null,null,null,null,"Bhs Inggris",null,null,null,null,null,null,null,null,null,null,2,null,null,null,2]
[null,null,null,null,"Aswaja",null,null,null,null,null,null,null,null,null,null,2,null,null,null,2]
[14,null,null,null,"Matematika",null,null,null,null,null,null,null,null,null,null,null,5,null,null,5,{"$f":"SUM(T130:T139)","v":31}]
[null,null,null,null,"IPA/Sains",null,null,null,null,null,null,null,null,null,null,null,4,null,null,4]
[null,null,null,null,"B. Indonesia",null,null,null,null,null,null,null,null,null,null,null,5,null,null,5]
[null,null,null,null,"IPS",null,null,null,null,null,null,null,null,null,null,null,3,null,null,3]
[null,"Chayul Mu'afa,S.Ag",null,null,"PPKn",null,null,null,null,null,null,null,null,null,null,null,2,null,null,2]
[null,"(WALI KELAS VI A)",null,null,"KTK",null,null,null,null,null,null,null,null,null,null,null,2,null,null,2]
[null,null,null,null,"Fiqih",null,null,null,null,null,null,null,null,null,null,null,2,null,null,2]
[null,null,null,null,"AlQuran Hadits",null,null,null,null,null,null,null,null,null,null,null,2,null,null,2]
[null,null,null,null,"Aqidah Akhlaq",null,null,null,null,null,null,null,null,null,null,null,2,null,null,2]
[null,null,null,null,"Bhs Daerah",null,null,null,null,null,null,null,null,null,null,null,2,2,null,4]
[15,null,null,null,"Matematika",null,null,null,null,null,null,null,null,null,null,null,null,5,null,5,{"$f":"SUM(T140:T148)","v":27}]
[null,null,null,null,"IPA/Sains",null,null,null,null,null,null,null,null,null,null,null,null,4,null,4]
[null,null,null,null,"B. Indonesia",null,null,null,null,null,null,null,null,null,null,null,null,5,null,5]
[null,null,null,null,"IPS",null,null,null,null,null,null,null,null,null,null,null,null,3,null,3]
[null,"Nurul Hidayah,S.Pd.I,MA",null,null,"PPKn",null,null,null,null,null,null,null,null,null,null,null,null,2,null,2]
[null,"(WALI KELAS VI B)",null,null,"KTK",null,null,null,null,null,null,null,null,null,null,null,null,2,null,2]
[null,null,null,null,"Fiqih",null,null,null,null,null,null,null,null,null,null,null,null,2,null,2]
[null,null,null,null,"AlQuran Hadits",null,null,null,null,null,null,null,null,null,null,null,null,2,null,2]
[null,null,null,null,"Aqidah Akhlaq",null,null,null,null,null,null,null,null,null,null,null,null,2,null,2]
[16,"Yuliana,S.Pd.i",null,null,"SKI",null,null,null,null,null,2,2,2,2,2,2,2,2,null,16,{"$f":"SUM(T149:T151)","v":29}]
[null,null,null,null,"Aqidah Akhlaq",null,null,null,null,null,null,null,2,2,2,2,null,null,null,8]
[null,null,null,null,"Bhs Daerah",1,1,1,1,1,null,null,null,null,null,null,null,null,null,5]
[17,"Muh. Zuhdi Agusriyanto, S.Pd",null,null,"Penjaskes",null,null,null,null,null,null,null,4,4,4,4,4,4,null,{"$f":"SUM(F152:S152)","v":24},{"$f":"SUM(T152:T153)","v":28}]
[null,null,null,null,"Bhs Daerah",null,null,null,null,null,null,null,null,null,2,2,null,null,null,{"$f":"SUM(F153:S153)","v":4}]
[18,"Azan Tudhoni, S. Pd",null,null,"Penjaskes",null,null,null,null,null,4,4,null,null,null,null,null,null,null,8,{"$f":"SUM(T154:T155)","v":12}]
[null,null,null,null,"Bhs Daerah",null,null,null,null,null,null,null,2,2,null,null,null,null,null,4]
[19,"Nurul Ain",null,null,"B. Arab",2,2,2,2,2,2,2,null,null,null,null,null,null,null,14,{"$f":"T156","v":14}]
[20,"Uul Mas'ulah",null,null,"B Inggris",null,null,null,null,null,null,null,null,null,null,null,2,2,null,4,{"$f":"T157","v":4}]
["TOTAL JAM MENGAJAR",null,null,null,null,{"$f":"SUM(F10:F157)","v":33},null,{"$f":"SUM(H10:H157)","v":33},33,33,39,39,43,43,43,43,43,43,{"$f":"SUM(S10:S155)","v":18},{"$f":"SUM(F158:S158)","v":486},{"$f":"SUM(U10:U157)","v":519}]
[]
[]
[]
[null,null,"Kepala Kantor Kementerian Agama",null,null,null,null,null,null,null,null,null,null,null,null,null,null,{"$f":"'LPT1718'!F51","v":"Labruk Kidul, 13 Juli 2019"}]
[null,null,"Kabupaten Lumajang",null,null,null,null,null,null,null,null,null,null,null,null,null,null,{"$f":"[1]Tugas!F52","v":"Kepala Madrasah"}]
[]
[null,null,"Drs. H. MOH. JUM AFANDI, M.Pd.I"]
[null,null,"NIP. 19580822 1999109 1 002",null,null,null,null,null,null,null,null,null,null,null,null,null,null,{"$f":"[1]Tugas!F55","v":"SAHRONI,S.Pd.I"}]